Workbook

Sheet Sheet1 (hidden)
A1: Fitting a probability distribution to data
L2: 3.55 | N2: min | O2: =MIN(L5:L71) -> 527.5546998
B3: annual peak flow | L3: 0.3 | N3: max | O3: =MAX(L5:L71) -> 18174.74838
A4: 1 | B4: 4293.715688 | C4: 9500.08313 | D4: 5857.884511 | G4: 0.99 | H4: =NORMSINV(1-G4) -> -2.326347874 | I4: =10^NORMINV(1-G4,$L$2,$L$3) -> 711.3701502 | Q4: random | T4: sample 1 | U4: sample 2 | V4: sample 3
A5: 2 | B5: 992.4761513 | C5: 8277.343606 | D5: 5100.510164 | G5: 0.9 | H5: =NORMSINV(1-G5) -> -1.281551566 | I5: =10^NORMINV(1-G5,$L$2,$L$3) -> 1463.977932 | J5: 1 | K5: =RAND() -> 0.04720961884 | L5: =10^NORMINV(K5,$L$2,$L$3) -> 1117.480765 | Q5: =LARGE($L$5:$L$71,J5) -> 18174.74838 | R5: =J5/68 -> 0.01470588235 | S5: =NORMSINV(1-R5) -> 2.177923069 | T5: =LARGE($B$4:$B$70,$J5) -> 14367.25799 | U5: =LARGE($C$4:$C$70,$J5) -> 18104.63974 | V5: =LARGE($D$4:$D$70,$J5) -> 18769.96979
A6: 3 | B6: 2629.090306 | C6: 4566.761054 | D6: 4942.740122 | G6: 0.75 | H6: -0.6744897502 | I6: 2226.655732 | J6: 2 | K6: =RAND() -> 0.9909824008 | L6: =10^NORMINV(K6,$L$2,$L$3) -> 18174.74838 | Q6: =LARGE($L$5:$L$71,J6) -> 14461.24755 | R6: =J6/68 -> 0.02941176471 | S6: =NORMSINV(1-R6) -> 1.88950996 | T6: =LARGE($B$4:$B$70,J6) -> 12006.85786 | U6: =LARGE($C$4:$C$70,$J6) -> 13540.00218 | V6: =LARGE($D$4:$D$70,$J6) -> 16455.37598
A7: 4 | B7: 8157.259128 | C7: 10450.64854 | D7: 4710.820422 | E7: 1000 | F7: =FREQUENCY(B4:B70,E7:E22) -> 3 | G7: 0.5 | H7: 0 | I7: 3548.133892 | J7: 3 | K7: 0.8062994827 | L7: 6446.174518 | N7: 1000 | O7: =FREQUENCY(L5:L71,N7:N22) -> 7 | Q7: 13367.36631 | R7: 0.04411764706 | S7: 1.704780905 | T7: 10694.41649 | U7: 12558.60407 | V7: 16161.01779
A8: 5 | B8: 3315.769316 | C8: 4635.330367 | D8: 747.2717801 | E8: 2000 | F8: 9 | G8: 0.25 | H8: 0.6744897502 | I8: 5653.884406 | J8: 4 | K8: 0.02398884116 | L8: 905.1700689 | N8: 2000 | O8: 5 | Q8: 11238.06477 | R8: 0.05882352941 | S8: 1.564726471 | T8: 10192.22029 | U8: 11561.38933 | V8: 12183.90834
A9: 6 | B9: 10192.22029 | C9: 18104.63974 | D9: 4826.976138 | E9: 3000 | F9: 15 | G9: 0.1 | H9: 1.281551566 | I9: 8599.346916 | J9: 5 | K9: 0.3820151699 | L9: 2883.648064 | N9: 3000 | O9: 11 | Q9: 9879.492953 | R9: 0.07352941176 | S9: 1.449998909 | T9: 9621.528431 | U9: 11181.53167 | V9: 9510.333876
A10: 7 | B10: 3269.733321 | C10: 5642.720662 | D10: 3826.912862 | E10: 4000 | F10: 9 | G10: 0.05 | H10: 1.644853627 | I10: 11052.38712 | J10: 6 | K10: 0.6559800399 | L10: 4682.25367 | N10: 4000 | O10: 13 | Q10: 7830.777996 | R10: 0.08823529412 | S10: 1.35170224 | T10: 9478.345513 | U10: 11002.30631 | V10: 8464.646812
A11: 8 | B11: 12006.85786 | C11: 2981.485573 | D11: 12183.90834 | E11: 5000 | F11: 10 | G11: 0.02 | H11: 2.053748911 | I11: 14659.68617 | J11: 7 | K11: 0.7587531201 | L11: 5763.538494 | N11: 5000 | O11: 7 | Q11: 7775.633823 | R11: 0.1029411765 | S11: 1.264969245 | T11: 8273.31208 | U11: 10450.64854 | V11: 8165.085598
A12: 9 | B12: 2441.430012 | C12: 1940.008818 | D12: 2804.006034 | E12: 6000 | F12: 8 | G12: 0.01 | H12: 2.326347874 | I12: 17697.19198 | J12: 8 | K12: 0.7509307788 | L12: 5665.346879 | N12: 6000 | O12: 10 | Q12: 7312.744953 | R12: 0.1176470588 | S12: 1.186831433 | T12: 8157.259128 | U12: 9759.057905 | V12: 8051.056367
A13: 10 | B13: 5056.627678 | C13: 3088.910935 | D13: 3020.790559 | E13: 7000 | F13: 2 | G13: 0.005 | H13: 2.575829304 | I13: 21025.61903 | J13: 9 | K13: 0.002897965771 | L13: 527.5546998 | N13: 7000 | O13: 5 | Q13: 7220.489334 | R13: 0.1323529412 | S13: 1.115337358 | T13: 7905.444228 | U13: 9620.361154 | V13: 7667.268199
A14: 11 | B14: 4460.729881 | C14: 1923.380703 | D14: 1822.614132 | E14: 8000 | F14: 3 | J14: 10 | K14: 0.3787131308 | L14: 2866.429762 | N14: 8000 | O14: 4 | Q14: 6907.875178 | R14: 0.1470588235 | S14: 1.049131398 | T14: 7391.342037 | U14: 9500.08313 | V14: 7638.365183
A15: 12 | B15: 5555.837806 | C15: 6370.629248 | D15: 2954.413749 | E15: 9000 | F15: 2 | J15: 11 | K15: 0.2756305532 | L15: 2350.923865 | N15: 9000 | O15: 0 | Q15: 6874.976515 | R15: 0.1617647059 | S15: 0.987230992 | T15: 7093.371861 | U15: 8797.574538 | V15: 6986.241776
A16: 13 | B16: 3277.995103 | C16: 9620.361154 | D16: 4165.729132 | E16: 10000 | F16: 2 | H16: =MAX(B4:B70) -> 14367.25799 | J16: 12 | K16: 0.7583320052 | L16: 5758.165578 | N16: 10000 | O16: 1 | Q16: 6791.353026 | R16: 0.1764705882 | S16: 0.9288994916 | T16: 6848.861404 | U16: 8598.590846 | V16: 6692.784183
A17: 14 | B17: 5281.333192 | C17: 2738.480349 | D17: 6986.241776 | E17: 11000 | F17: 2 | J17: 13 | K17: 0.4891125684 | L17: 3481.863651 | N17: 11000 | O17: 0 | Q17: 6446.174518 | R17: 0.1911764706 | S17: 0.8735691346 | T17: 6609.603542 | U17: 8277.343606 | V17: 6547.841922
A18: 15 | B18: 3176.904028 | C18: 4523.658115 | D18: 3474.486858 | E18: 12000 | F18: 0 | J18: 14 | K18: 0.3930066166 | L18: 2941.390103 | N18: 12000 | O18: 1 | Q18: 6435.090171 | R18: 0.2058823529 | S18: 0.8207920883 | T18: 5689.256053 | U18: 8168.440358 | V18: 6370.939732
A19: 16 | B19: 3418.731784 | C19: 3464.701942 | D19: 4240.804224 | E19: 13000 | F19: 1 | J19: 15 | K19: 0.8308603677 | L19: 6874.976515 | N19: 13000 | O19: 0 | Q19: 5763.538494 | R19: 0.2205882353 | S19: 0.7702080819 | T19: 5665.050123 | U19: 7553.590816 | V19: 6138.210454
A20: 17 | B20: 746.2212333 | C20: 8168.440358 | D20: 4500.707695 | E20: 14000 | F20: 0 | J20: 16 | K20: 0.4412042171 | L20: 3203.501722 | N20: 14000 | O20: 1 | Q20: 5758.165578 | R20: 0.2352941176 | S20: 0.721522284 | T20: 5646.463892 | U20: 7338.814574 | V20: 6078.580775
A21: 18 | B21: 5631.95704 | C21: 4783.37572 | D21: 4776.209642 | E21: 15000 | F21: 1 | J21: 17 | K21: 0.4169716504 | L21: 3069.770732 | N21: 15000 | O21: 1 | Q21: 5701.325256 | R21: 0.25 | S21: 0.6744897502 | T21: 5631.95704 | U21: 7285.289908 | V21: 5953.380761
A22: 19 | B22: 1658.945623 | C22: 4514.267343 | D22: 3883.252776 | E22: 16000 | F22: 0 | J22: 18 | K22: 0.8719769313 | L22: 7775.633823 | N22: 16000 | O22: 0 | Q22: 5665.346879 | R22: 0.2647058824 | S22: 0.6289042176 | T22: 5555.837806 | U22: 7264.231107 | V22: 5857.884511
A23: 20 | B23: 4538.914927 | C23: 3568.079418 | D23: 3403.429334 | J23: 19 | K23: 0.3986483899 | L23: 2971.295592 | Q23: 5552.80209 | R23: 0.2794117647 | S23: 0.5845898571 | T23: 5298.817802 | U23: 7210.732984 | V23: 5646.247879
A24: 21 | B24: 2985.779302 | C24: 5318.379438 | D24: 1085.619874 | J24: 20 | K24: 0.06755149251 | L24: 1263.91135 | Q24: 5348.549425 | R24: 0.2941176471 | S24: 0.5413950851 | T24: 5281.333192 | U24: 6933.115448 | V24: 5332.587136
A25: 22 | B25: 6848.861404 | C25: 2807.488789 | D25: 16455.37598 | J25: 21 | K25: 0.2342660484 | L25: 2150.498537 | Q25: 5343.581837 | R25: 0.3088235294 | S25: 0.4991878421 | T25: 5056.627678 | U25: 6749.901125 | V25: 5100.510164
A26: 23 | B26: 1549.169262 | C26: 5873.771106 | D26: 4430.245187 | J26: 22 | K26: 0.5589008474 | L26: 3930.564398 | Q26: 5135.381433 | R26: 0.3235294118 | S26: 0.457851931 | T26: 4699.721557 | U26: 6370.629248 | V26: 5038.488926
A27: 24 | B27: 4051.291338 | C27: 8797.574538 | D27: 8464.646812 | J27: 23 | K27: 0.10717908 | L27: 1504.869538 | Q27: 5094.489061 | R27: 0.3382352941 | S27: 0.4172841394 | T27: 4538.914927 | U27: 5873.771106 | V27: 4974.80818
A28: 25 | B28: 975.2916806 | C28: 4540.661661 | D28: 6138.210454 | J28: 24 | K28: 0.005733463795 | L28: 618.8118268 | Q28: 5028.483973 | R28: 0.3529411765 | S28: 0.3773919438 | T28: 4460.729881 | U28: 5843.412015 | V28: 4942.740122
A29: 26 | B29: 1260.136172 | C29: 2603.369695 | D29: 9510.333876 | J29: 25 | K29: 0.4463730864 | L29: 3232.592471 | Q29: 4721.672456 | R29: 0.3676470588 | S29: 0.3380916568 | T29: 4355.093012 | U29: 5647.050599 | V29: 4867.42037
A30: 27 | B30: 4355.093012 | C30: 7264.231107 | D30: 3478.994302 | J30: 26 | K30: 0.7037588592 | L30: 5135.381433 | Q30: 4682.25367 | R30: 0.3823529412 | S30: 0.2993069105 | T30: 4293.715688 | U30: 5642.720662 | V30: 4855.574026
A31: 28 | B31: 9621.528431 | C31: 3439.55133 | D31: 2055.404856 | J31: 27 | K31: 0.5337122181 | L31: 3761.676528 | Q31: 4520.850716 | R31: 0.3970588235 | S31: 0.2609674004 | T31: 4214.105835 | U31: 5318.379438 | V31: 4826.976138
A32: 29 | B32: 5298.817802 | C32: 11002.30631 | D32: 6692.784183 | J32: 28 | K32: 0.8263538633 | L32: 6791.353026 | Q32: 4516.256776 | R32: 0.4117647059 | S32: 0.2230078309 | T32: 4182.1133 | U32: 5301.889551 | V32: 4776.209642
A33: 30 | B33: 7093.371861 | C33: 2190.525308 | D33: 2968.390496 | J33: 29 | K33: 0.5889439371 | L33: 4144.276938 | Q33: 4250.097792 | R33: 0.4264705882 | S33: 0.1853670173 | T33: 4144.891196 | U33: 5031.447866 | V33: 4710.820422
A34: 31 | B34: 14367.25799 | C34: 3018.453525 | D34: 2471.277151 | J34: 30 | K34: 0.6030808843 | L34: 4250.097792 | Q34: 4194.841857 | R34: 0.4411764706 | S34: 0.1479871097 | T34: 4051.291338 | U34: 4938.7259 | V34: 4500.707695
A35: 32 | B35: 2625.538675 | C35: 13540.00218 | D35: 4855.574026 | J35: 31 | K35: 0.4171308072 | L35: 3070.635589 | Q35: 4144.276938 | R35: 0.4558823529 | S35: 0.1108129123 | T35: 4042.928716 | U35: 4783.37572 | V35: 4430.245187
A36: 33 | B36: 1898.461947 | C36: 2108.639792 | D36: 5038.488926 | J36: 32 | K36: 0.4710006853 | L36: 3374.221662 | Q36: 3930.564398 | R36: 0.4705882353 | S36: 0.07379127381 | T36: 3913.693946 | U36: 4710.112275 | V36: 4240.804224
A37: 34 | B37: 8273.31208 | C37: 2710.116851 | D37: 3449.123226 | J37: 33 | K37: 0.8325977367 | L37: 6907.875178 | Q37: 3911.924866 | R37: 0.4852941176 | S37: 0.03687053266 | T37: 3551.594419 | U37: 4635.330367 | V37: 4165.729132
A38: 35 | B38: 5646.463892 | C38: 1297.511748 | D38: 2524.73038 | J38: 34 | K38: 0.8741058112 | L38: 7830.777996 | Q38: 3761.676528 | R38: 0.5 | S38: 0 | T38: 3418.731784 | U38: 4624.663351 | V38: 3883.252776
A39: 36 | B39: 3551.594419 | C39: 7210.732984 | D39: 3085.673574 | J39: 35 | K39: 0.3356924826 | L39: 2646.827285 | Q39: 3728.409409 | R39: 0.5147058824 | S39: -0.03687053266 | T39: 3354.084518 | U39: 4566.761054 | V39: 3826.912862
A40: 37 | B40: 2041.454088 | C40: 6749.901125 | D40: 6370.939732 | J40: 36 | K40: 0.5957591918 | L40: 4194.841857 | Q40: 3481.863651 | R40: 0.5294117647 | S40: -0.07379127381 | T40: 3315.769316 | U40: 4540.661661 | V40: 3478.994302
A41: 38 | B41: 2700.096208 | C41: 7553.590816 | D41: 5332.587136 | J41: 37 | K41: 0.4869691779 | L41: 3468.959494 | Q41: 3468.959494 | R41: 0.5441176471 | S41: -0.1108129123 | T41: 3277.995103 | U41: 4523.658115 | V41: 3474.486858
A42: 39 | B42: 1545.030827 | C42: 4938.7259 | D42: 18769.96979 | J42: 38 | K42: 0.474841527 | L42: 3396.788924 | Q42: 3396.788924 | R42: 0.5588235294 | S42: -0.1479871097 | T42: 3269.733321 | U42: 4514.267343 | V42: 3449.123226
A43: 40 | B43: 2064.161398 | C43: 3094.522922 | D43: 1332.208257 | J43: 39 | K43: 0.02324407321 | L43: 896.8499896 | Q43: 3374.221662 | R43: 0.5735294118 | S43: -0.1853670173 | T43: 3176.904028 | U43: 4135.11718 | V43: 3444.348484
A44: 41 | B44: 1850.79769 | C44: 6933.115448 | D44: 2877.988543 | J44: 40 | K44: 0.9790251702 | L44: 14461.24755 | Q44: 3365.721756 | R44: 0.5882352941 | S44: -0.2230078309 | T44: 3164.828316 | U44: 4095.500359 | V44: 3403.429334
A45: 42 | B45: 6609.603542 | C45: 5031.447866 | D45: 1638.501599 | J45: 41 | K45: 0.1130493594 | L45: 1537.655678 | Q45: 3232.592471 | R45: 0.6029411765 | S45: -0.2609674004 | T45: 2985.779302 | U45: 3763.79898 | V45: 3320.631662
A46: 43 | B46: 1210.892176 | C46: 12558.60407 | D46: 3444.348484 | J46: 42 | K46: 0.5561841901 | L46: 3911.924866 | Q46: 3203.501722 | R46: 0.6176470588 | S46: -0.2993069105 | T46: 2864.207894 | U46: 3568.079418 | V46: 3274.262507
A47: 44 | B47: 2712.063505 | C47: 3394.014391 | D47: 4974.80818 | J47: 43 | K47: 0.6365537208 | L47: 4516.256776 | Q47: 3070.635589 | R47: 0.6323529412 | S47: -0.3380916568 | T47: 2844.970978 | U47: 3464.701942 | V47: 3272.987184
A48: 45 | B48: 2828.021025 | C48: 4135.11718 | D48: 1494.148525 | J48: 44 | K48: 0.2752109118 | L48: 2348.883918 | Q48: 3069.770732 | R48: 0.6470588235 | S48: -0.3773919438 | T48: 2828.021025 | U48: 3439.55133 | V48: 3096.412574
A49: 46 | B49: 3913.693946 | C49: 3163.507961 | D49: 3320.631662 | J49: 45 | K49: 0.02634831846 | L49: 930.637221 | Q49: 2971.295592 | R49: 0.6617647059 | S49: -0.4172841394 | T49: 2754.675066 | U49: 3394.014391 | V49: 3085.673574
A50: 47 | B50: 10694.41649 | C50: 1580.674727 | D50: 3043.2548 | J50: 46 | K50: 0.2338042226 | L50: 2148.262122 | Q50: 2941.390103 | R50: 0.6764705882 | S50: -0.457851931 | T50: 2712.063505 | U50: 3163.507961 | V50: 3053.756662
A51: 48 | B51: 2864.207894 | C51: 1147.417764 | D51: 2809.140699 | J51: 47 | K51: 0.9524385127 | L51: 11238.06477 | Q51: 2883.648064 | R51: 0.6911764706 | S51: -0.4991878421 | T51: 2700.096208 | U51: 3094.522922 | V51: 3043.2548
A52: 49 | B52: 2020.574723 | C52: 2953.637183 | D52: 8051.056367 | J52: 48 | K52: 0.9308895483 | L52: 9879.492953 | Q52: 2866.429762 | R52: 0.7058823529 | S52: -0.5413950851 | T52: 2629.090306 | U52: 3088.910935 | V52: 3020.790559
A53: 50 | B53: 9478.345513 | C53: 861.6278562 | D53: 1676.334372 | J53: 49 | K53: 0.5285977046 | L53: 3728.409409 | Q53: 2646.827285 | R53: 0.7205882353 | S53: -0.5845898571 | T53: 2625.538675 | U53: 3018.453525 | V53: 2968.390496
A54: 51 | B54: 1555.882867 | C54: 3763.79898 | D54: 3096.412574 | J54: 50 | K54: 0.7538281922 | L54: 5701.325256 | Q54: 2411.911228 | R54: 0.7352941176 | S54: -0.6289042176 | T54: 2488.190466 | U54: 2981.485573 | V54: 2954.413749
A55: 52 | B55: 3354.084518 | C55: 7285.289908 | D55: 4867.42037 | J55: 51 | K55: 0.09224190827 | L55: 1418.657138 | Q55: 2350.923865 | R55: 0.75 | S55: -0.6744897502 | T55: 2441.430012 | U55: 2966.279756 | V55: 2877.988543
A56: 53 | B56: 2488.190466 | C56: 5843.412015 | D56: 7667.268199 | J56: 52 | K56: 0.7237840874 | L56: 5348.549425 | Q56: 2348.883918 | R56: 0.7647058824 | S56: -0.721522284 | T56: 2219.976826 | U56: 2953.637183 | V56: 2809.140699
A57: 54 | B57: 4699.721557 | C57: 9759.057905 | D57: 7638.365183 | J57: 53 | K57: 0.006692427098 | L57: 642.6750565 | Q57: 2278.856966 | R57: 0.7794117647 | S57: -0.7702080819 | T57: 2064.161398 | U57: 2807.488789 | V57: 2804.006034
A58: 55 | B58: 7905.444228 | C58: 11181.53167 | D58: 2118.576793 | J58: 54 | K58: 0.8524351647 | L58: 7312.744953 | Q58: 2150.498537 | R58: 0.7941176471 | S58: -0.8207920883 | T58: 2041.454088 | U58: 2738.480349 | V58: 2524.73038
A59: 56 | B59: 4144.891196 | C59: 2563.176149 | D59: 5953.380761 | J59: 55 | K59: 0.8056146336 | L59: 6435.090171 | Q59: 2148.262122 | R59: 0.8088235294 | S59: -0.8735691346 | T59: 2020.574723 | U59: 2710.116851 | V59: 2471.277151
A60: 57 | B60: 5665.050123 | C60: 2025.734912 | D60: 1556.211066 | J60: 56 | K60: 0.7233340905 | L60: 5343.581837 | Q60: 1537.655678 | R60: 0.8235294118 | S60: -0.9288994916 | T60: 1908.442966 | U60: 2603.369695 | V60: 2314.278842
A61: 58 | B61: 3164.828316 | C61: 7338.814574 | D61: 3053.756662 | J61: 57 | K61: 0.288150612 | L61: 2411.911228 | Q61: 1504.869538 | R61: 0.8382352941 | S61: -0.987230992 | T61: 1898.461947 | U61: 2563.176149 | V61: 2168.423397
A62: 59 | B62: 4042.928716 | C62: 11561.38933 | D62: 6078.580775 | J62: 58 | K62: 0.7416284532 | L62: 5552.80209 | Q62: 1418.657138 | R62: 0.8529411765 | S62: -1.049131398 | T62: 1850.79769 | U62: 2190.525308 | V62: 2118.576793
A63: 60 | B63: 7391.342037 | C63: 4710.112275 | D63: 16161.01779 | J63: 59 | K63: 0.6931469122 | L63: 5028.483973 | Q63: 1263.91135 | R63: 0.8676470588 | S63: -1.115337358 | T63: 1658.945623 | U63: 2108.639792 | V63: 2055.404856
A64: 61 | B64: 1908.442966 | C64: 2966.279756 | D64: 3272.987184 | J64: 60 | K64: 0.6997455332 | L64: 5094.489061 | Q64: 1117.480765 | R64: 0.8823529412 | S64: -1.186831433 | T64: 1555.882867 | U64: 2025.734912 | V64: 1822.614132
A65: 62 | B65: 4182.1133 | C65: 1435.979752 | D65: 2314.278842 | J65: 61 | K65: 0.6604358208 | L65: 4721.672456 | Q65: 930.637221 | R65: 0.8970588235 | S65: -1.264969245 | T65: 1549.169262 | U65: 1940.008818 | V65: 1676.334372
A66: 63 | B66: 2844.970978 | C66: 8598.590846 | D66: 2168.423397 | J66: 62 | K66: 0.01745331266 | L66: 826.3575871 | Q66: 905.1700689 | R66: 0.9117647059 | S66: -1.35170224 | T66: 1545.030827 | U66: 1923.380703 | V66: 1638.501599
A67: 64 | B67: 2219.976826 | C67: 4624.663351 | D67: 6547.841922 | J67: 63 | K67: 0.4695480615 | L67: 3365.721756 | Q67: 896.8499896 | R67: 0.9264705882 | S67: -1.449998909 | T67: 1260.136172 | U67: 1580.674727 | V67: 1556.211066
A68: 65 | B68: 5689.256053 | C68: 5647.050599 | D68: 3274.262507 | J68: 64 | K68: 0.260779823 | L68: 2278.856966 | Q68: 826.3575871 | R68: 0.9411764706 | S68: -1.564726471 | T68: 1210.892176 | U68: 1435.979752 | V68: 1494.148525
A69: 66 | B69: 4214.105835 | C69: 5301.889551 | D69: 8165.085598 | J69: 65 | K69: 0.9725807012 | L69: 13367.36631 | Q69: 642.6750565 | R69: 0.9558823529 | S69: -1.704780905 | T69: 992.4761513 | U69: 1297.511748 | V69: 1332.208257
A70: 67 | B70: 2754.675066 | C70: 4095.500359 | D70: 5646.247879 | J70: 66 | K70: =RAND() -> 0.8481556859 | L70: =10^NORMINV(K70,$L$2,$L$3) -> 7220.489334 | Q70: =LARGE($L$5:$L$71,J70) -> 618.8118268 | R70: =J70/68 -> 0.9705882353 | S70: =NORMSINV(1-R70) -> -1.88950996 | T70: =LARGE($B$4:$B$70,J70) -> 975.2916806 | U70: =LARGE($C$4:$C$70,$J70) -> 1147.417764 | V70: =LARGE($D$4:$D$70,$J70) -> 1085.619874
J71: 67 | K71: 0.6371060001 | L71: 4520.850716 | Q71: 527.5546998 | R71: 0.9852941176 | S71: -2.177923069 | T71: 746.2212333 | U71: 861.6278562 | V71: 747.2717801

Sheet data set
A1: Fitting a probability distribution to data | U1: Weibull
C2: annual | U2: plotting | V2: deviate of | W2: ranked
B3: year | C3: peak flow | U3: position | V3: plot pos | W3: flows
A4: 1 | B4: 1936 | C4: 4294 | T4: 1 | U4: =T4/($F$10+1) -> 0.01470588235 | V4: =NORMSINV(1-U4) -> 2.177923069 | W4: =LARGE($C$4:$C$70,T4) -> 14367
A5: 2 | B5: 1937 | C5: 992 | E5: min flow = | F5: =MIN(C4:C70) -> 746 | T5: 2 | U5: =T5/($F$10+1) -> 0.02941176471 | V5: =NORMSINV(1-U5) -> 1.88950996 | W5: =LARGE($C$4:$C$70,T5) -> 12007
A6: 3 | B6: 1938 | C6: 2629 | E6: max flow = | F6: =MAX(C4:C70) -> 14367 | T6: 3 | U6: 0.04411764706 | V6: 1.704780905 | W6: 10694
A7: 4 | B7: 1939 | C7: 8157 | E7: average = | F7: =AVERAGE(C4:C70) -> 4347.19403 | T7: 4 | U7: 0.05882352941 | V7: 1.564726471 | W7: 10192
A8: 5 | B8: 1940 | C8: 3316 | E8: std. dev = | F8: =STDEV(C4:C70) -> 2839.512822 | T8: 5 | U8: 0.07352941176 | V8: 1.449998909 | W8: 9622
A9: 6 | B9: 1941 | C9: 10192 | E9: skew = | F9: =SKEW(C4:C70) -> 1.381194753 | T9: 6 | U9: 0.08823529412 | V9: 1.35170224 | W9: 9478
A10: 7 | B10: 1942 | C10: 3270 | E10: sample size = | F10: =COUNT(C4:C70) -> 67 | T10: 7 | U10: 0.1029411765 | V10: 1.264969245 | W10: 8273
A11: 8 | B11: 1943 | C11: 12007 | T11: 8 | U11: 0.1176470588 | V11: 1.186831433 | W11: 8157
A12: 9 | B12: 1944 | C12: 2441 | T12: 9 | U12: 0.1323529412 | V12: 1.115337358 | W12: 7905
A13: 10 | B13: 1945 | C13: 5057 | T13: 10 | U13: 0.1470588235 | V13: 1.049131398 | W13: 7391
A14: 11 | B14: 1946 | C14: 4461 | T14: 11 | U14: 0.1617647059 | V14: 0.987230992 | W14: 7093
A15: 12 | B15: 1947 | C15: 5556 | T15: 12 | U15: 0.1764705882 | V15: 0.9288994916 | W15: 6849
A16: 13 | B16: 1948 | C16: 3278 | T16: 13 | U16: 0.1911764706 | V16: 0.8735691346 | W16: 6610
A17: 14 | B17: 1949 | C17: 5281 | T17: 14 | U17: 0.2058823529 | V17: 0.8207920883 | W17: 5689
A18: 15 | B18: 1950 | C18: 3177 | G18: histogram | I18: relative | J18: cumulative | T18: 15 | U18: 0.2205882353 | V18: 0.7702080819 | W18: 5665
A19: 16 | B19: 1951 | C19: 3419 | H19: frequency() | I19: frequency | J19: frequency | K19: index value | T19: 16 | U19: 0.2352941176 | V19: 0.721522284 | W19: 5646
A20: 17 | B20: 1952 | C20: 746 | G20: 0 | T20: 17 | U20: 0.25 | V20: 0.6744897502 | W20: 5632
A21: 18 | B21: 1953 | C21: 5632 | G21: 1000 | K21: =AVERAGE(G20:G21) -> 500 | T21: 18 | U21: 0.2647058824 | V21: 0.6289042176 | W21: 5556
A22: 19 | B22: 1954 | C22: 1659 | G22: 2000 | K22: 1500 | T22: 19 | U22: 0.2794117647 | V22: 0.5845898571 | W22: 5299
A23: 20 | B23: 1955 | C23: 4539 | G23: 3000 | K23: 2500 | T23: 20 | U23: 0.2941176471 | V23: 0.5413950851 | W23: 5281
A24: 21 | B24: 1956 | C24: 2986 | G24: 4000 | K24: 3500 | T24: 21 | U24: 0.3088235294 | V24: 0.4991878421 | W24: 5057
A25: 22 | B25: 1957 | C25: 6849 | G25: 5000 | K25: 4500 | T25: 22 | U25: 0.3235294118 | V25: 0.457851931 | W25: 4700
A26: 23 | B26: 1958 | C26: 1549 | G26: 6000 | K26: 5500 | T26: 23 | U26: 0.3382352941 | V26: 0.4172841394 | W26: 4539
A27: 24 | B27: 1959 | C27: 4051 | G27: 7000 | K27: 6500 | T27: 24 | U27: 0.3529411765 | V27: 0.3773919438 | W27: 4461
A28: 25 | B28: 1960 | C28: 975 | G28: 8000 | K28: 7500 | T28: 25 | U28: 0.3676470588 | V28: 0.3380916568 | W28: 4355
A29: 26 | B29: 1961 | C29: 1260 | G29: 9000 | K29: 8500 | T29: 26 | U29: 0.3823529412 | V29: 0.2993069105 | W29: 4294
A30: 27 | B30: 1962 | C30: 4355 | G30: 10000 | K30: 9500 | T30: 27 | U30: 0.3970588235 | V30: 0.2609674004 | W30: 4214
A31: 28 | B31: 1963 | C31: 9622 | G31: 11000 | K31: 10500 | T31: 28 | U31: 0.4117647059 | V31: 0.2230078309 | W31: 4182
A32: 29 | B32: 1964 | C32: 5299 | G32: 12000 | K32: 11500 | T32: 29 | U32: 0.4264705882 | V32: 0.1853670173 | W32: 4145
A33: 30 | B33: 1965 | C33: 7093 | G33: 13000 | K33: 12500 | T33: 30 | U33: 0.4411764706 | V33: 0.1479871097 | W33: 4051
A34: 31 | B34: 1966 | C34: 14367 | G34: 14000 | K34: 13500 | T34: 31 | U34: 0.4558823529 | V34: 0.1108129123 | W34: 4043
A35: 32 | B35: 1967 | C35: 2626 | G35: 15000 | K35: 14500 | T35: 32 | U35: 0.4705882353 | V35: 0.07379127381 | W35: 3914
A36: 33 | B36: 1968 | C36: 1898 | G36: 16000 | K36: 15500 | T36: 33 | U36: 0.4852941176 | V36: 0.03687053266 | W36: 3552
A37: 34 | B37: 1969 | C37: 8273 | T37: 34 | U37: 0.5 | V37: 0 | W37: 3419
A38: 35 | B38: 1970 | C38: 5646 | G38: sample size: | H38: =SUM(H21:H36) -> 0 | I38: =SUM(I21:I36) -> 0 | T38: 35 | U38: 0.5147058824 | V38: -0.03687053266 | W38: 3354
A39: 36 | B39: 1971 | C39: 3552 | T39: 36 | U39: 0.5294117647 | V39: -0.07379127381 | W39: 3316
A40: 37 | B40: 1972 | C40: 2041 | T40: 37 | U40: 0.5441176471 | V40: -0.1108129123 | W40: 3278
A41: 38 | B41: 1973 | C41: 2700 | T41: 38 | U41: 0.5588235294 | V41: -0.1479871097 | W41: 3270
A42: 39 | B42: 1974 | C42: 1545 | T42: 39 | U42: 0.5735294118 | V42: -0.1853670173 | W42: 3177
A43: 40 | B43: 1975 | C43: 2064 | T43: 40 | U43: 0.5882352941 | V43: -0.2230078309 | W43: 3165
A44: 41 | B44: 1976 | C44: 1851 | T44: 41 | U44: 0.6029411765 | V44: -0.2609674004 | W44: 2986
A45: 42 | B45: 1977 | C45: 6610 | T45: 42 | U45: 0.6176470588 | V45: -0.2993069105 | W45: 2864
A46: 43 | B46: 1978 | C46: 1211 | T46: 43 | U46: 0.6323529412 | V46: -0.3380916568 | W46: 2845
A47: 44 | B47: 1979 | C47: 2712 | T47: 44 | U47: 0.6470588235 | V47: -0.3773919438 | W47: 2828
A48: 45 | B48: 1980 | C48: 2828 | T48: 45 | U48: 0.6617647059 | V48: -0.4172841394 | W48: 2755
A49: 46 | B49: 1981 | C49: 3914 | T49: 46 | U49: 0.6764705882 | V49: -0.457851931 | W49: 2712
A50: 47 | B50: 1982 | C50: 10694 | T50: 47 | U50: 0.6911764706 | V50: -0.4991878421 | W50: 2700
A51: 48 | B51: 1983 | C51: 2864 | T51: 48 | U51: 0.7058823529 | V51: -0.5413950851 | W51: 2629
A52: 49 | B52: 1984 | C52: 2021 | T52: 49 | U52: 0.7205882353 | V52: -0.5845898571 | W52: 2626
A53: 50 | B53: 1985 | C53: 9478 | T53: 50 | U53: 0.7352941176 | V53: -0.6289042176 | W53: 2488
A54: 51 | B54: 1986 | C54: 1556 | T54: 51 | U54: 0.75 | V54: -0.6744897502 | W54: 2441
A55: 52 | B55: 1987 | C55: 3354 | T55: 52 | U55: 0.7647058824 | V55: -0.721522284 | W55: 2220
A56: 53 | B56: 1988 | C56: 2488 | T56: 53 | U56: 0.7794117647 | V56: -0.7702080819 | W56: 2064
A57: 54 | B57: 1989 | C57: 4700 | T57: 54 | U57: 0.7941176471 | V57: -0.8207920883 | W57: 2041
A58: 55 | B58: 1990 | C58: 7905 | T58: 55 | U58: 0.8088235294 | V58: -0.8735691346 | W58: 2021
A59: 56 | B59: 1991 | C59: 4145 | T59: 56 | U59: 0.8235294118 | V59: -0.9288994916 | W59: 1908
A60: 57 | B60: 1992 | C60: 5665 | T60: 57 | U60: 0.8382352941 | V60: -0.987230992 | W60: 1898
A61: 58 | B61: 1993 | C61: 3165 | T61: 58 | U61: 0.8529411765 | V61: -1.049131398 | W61: 1851
A62: 59 | B62: 1994 | C62: 4043 | T62: 59 | U62: 0.8676470588 | V62: -1.115337358 | W62: 1659
A63: 60 | B63: 1995 | C63: 7391 | T63: 60 | U63: 0.8823529412 | V63: -1.186831433 | W63: 1556
A64: 61 | B64: 1996 | C64: 1908 | T64: 61 | U64: 0.8970588235 | V64: -1.264969245 | W64: 1549
A65: 62 | B65: 1997 | C65: 4182 | T65: 62 | U65: 0.9117647059 | V65: -1.35170224 | W65: 1545
A66: 63 | B66: 1998 | C66: 2845 | T66: 63 | U66: 0.9264705882 | V66: -1.449998909 | W66: 1260
A67: 64 | B67: 1999 | C67: 2220 | T67: 64 | U67: 0.9411764706 | V67: -1.564726471 | W67: 1211
A68: 65 | B68: 2000 | C68: 5689 | T68: 65 | U68: 0.9558823529 | V68: -1.704780905 | W68: 992
A69: 66 | B69: 2001 | C69: 4214 | T69: 66 | U69: =T69/($F$10+1) -> 0.9705882353 | V69: =NORMSINV(1-U69) -> -1.88950996 | W69: =LARGE($C$4:$C$70,T69) -> 975
A70: 67 | B70: 2002 | C70: 2755 | T70: 67 | U70: 0.9852941176 | V70: -2.177923069 | W70: 746

Sheet Uniform
A1: Fitting a probability distribution to data | W1: Weibull | Z1: =CORREL(Z4:Z70,W4:W70) ->  | AO1: interpolation | AQ1: A | AR1: B | AS1: C | AT1: E
C2: annual | W2: plotting | X2: deviate of | Y2: ranked | Z2: uniform distribution | AQ2: first | AS2: second
B3: year | C3: peak flow | W3: position | X3: plot pos | Y3: flows | Z3: p | AA3: quantile | AK3: exc prob | AL3: dev | AM3: CDF | AO3: lower | AP3: upper | AQ3: lower | AR3: upper | AS3: lower | AT3: upper | AU3: interp
A4: 1 | B4: 1936 | C4: 4294 | V4: 1 | W4: =V4/($V$70+1) -> 0.01470588235 | X4: =NORMSINV(1-W4) -> 2.177923069 | Y4: =LARGE($C$4:$C$70,V4) -> 14367 | Z4: =1-(Y4-$G$9)/($G$10-$G$9) ->  | AA4: =$G$9+($G$10-$G$9)*(1-W4) -> 0 | AK4: 0.98 | AL4: =NORMSINV(1-AK4) -> -2.053748911 | AM4: =AU4 ->  | AO4: =MATCH(1-AK4,$K$17:$K$32,1) ->  | AP4: =IF(AO4<16,AO4+1,AO4) ->  | AQ4: =IF(AO4<>AP4,INDEX($I$17:$I$32,AO4),INDEX($I$17:$I$32,AO4-1)) ->  | AR4: =INDEX($I$17:$I$32,AP4) ->  | AS4: =IF(AO4<>AP4,INDEX($K$17:$K$32,AO4),INDEX($K$17:$K$32,AO4-1)) ->  | AT4: =INDEX($K$17:$K$32,AP4) ->  | AU4: =AQ4+(AR4-AQ4)*(1-AK4-AS4)/(AT4-AS4) -> 
A5: 2 | B5: 1937 | C5: 992 | V5: 2 | W5: =V5/($V$70+1) -> 0.02941176471 | X5: =NORMSINV(1-W5) -> 1.88950996 | Y5: =LARGE($C$4:$C$70,V5) -> 12007 | AA5: 0 | AK5: 0.95 | AL5: -1.644853627 | AM5: =AU5 ->  | AO5: =MATCH(1-AK5,$K$17:$K$32,1) ->  | AQ5: =IF(AO5<>AP5,INDEX($I$17:$I$32,AO5),INDEX($I$17:$I$32,AO5-1)) ->  | AR5: =INDEX($I$17:$I$32,AP5) ->  | AS5: =IF(AO5<>AP5,INDEX($K$17:$K$32,AO5),INDEX($K$17:$K$32,AO5-1)) ->  | AT5: =INDEX($K$17:$K$32,AP5) ->  | AU5: =AQ5+(AR5-AQ5)*(1-AK5-AS5)/(AT5-AS5) -> 
A6: 3 | B6: 1938 | C6: 2629 | F6: fit a uniform distribution | V6: 3 | W6: 0.04411764706 | X6: 1.704780905 | Y6: 10694 | AA6: 0 | AK6: 0.9 | AL6: -1.281551566
A7: 4 | B7: 1939 | C7: 8157 | V7: 4 | W7: 0.05882352941 | X7: 1.564726471 | Y7: 10192 | AA7: 0 | AK7: 0.85 | AL7: -1.036433389
A8: 5 | B8: 1940 | C8: 3316 | F8: parameters are: | V8: 5 | W8: 0.07352941176 | X8: 1.449998909 | Y8: 9622 | AA8: 0 | AK8: 0.8 | AL8: -0.8416212336
A9: 6 | B9: 1941 | C9: 10192 | F9: min = | H9: a | V9: 6 | W9: 0.08823529412 | X9: 1.35170224 | Y9: 9478 | AA9: 0 | AK9: 0.75 | AL9: -0.6744897502
A10: 7 | B10: 1942 | C10: 3270 | F10: max = | H10: b | V10: 7 | W10: 0.1029411765 | X10: 1.264969245 | Y10: 8273 | AA10: 0 | AK10: 0.7 | AL10: -0.5244005127
A11: 8 | B11: 1943 | C11: 12007 | V11: 8 | W11: 0.1176470588 | X11: 1.186831433 | Y11: 8157 | AA11: 0 | AK11: 0.65 | AL11: -0.3853204664
A12: 9 | B12: 1944 | C12: 2441 | V12: 9 | W12: 0.1323529412 | X12: 1.115337358 | Y12: 7905 | AA12: 0 | AK12: 0.6 | AL12: -0.2533471031
A13: 10 | B13: 1945 | C13: 5057 | V13: 10 | W13: 0.1470588235 | X13: 1.049131398 | Y13: 7391 | AA13: 0 | AK13: 0.55 | AL13: -0.1256613469
A14: 11 | B14: 1946 | C14: 4461 | V14: 11 | W14: 0.1617647059 | X14: 0.987230992 | Y14: 7093 | AA14: 0 | AK14: 0.5 | AL14: -2.504624782e-15
A15: 12 | B15: 1947 | C15: 5556 | E15: histogram | I15: Uniform Distribution PDF and CDF | V15: 12 | W15: 0.1764705882 | X15: 0.9288994916 | Y15: 6849 | AA15: 0 | AK15: 0.45 | AL15: 0.1256613469
A16: 13 | B16: 1948 | C16: 3278 | E16: 0 | F16: frequency() | G16: rel freq. | H16: cum. freq | I16: index | J16: PDF | K16: CDF | V16: 13 | W16: 0.1911764706 | X16: 0.8735691346 | Y16: 6610 | AA16: 0 | AK16: 0.4 | AL16: 0.2533471031
A17: 14 | B17: 1949 | C17: 5281 | E17: 1000 | F17: =FREQUENCY(C4:C70,E17:E32) -> 3 | G17: =F17/SUM($F$17:$F$32) -> 0.0447761194 | H17: =G17 -> 0.0447761194 | I17: =AVERAGE(E16:E17) -> 500 | J17: =1/($G$10-$G$9)*1000 ->  | K17: =IF(I17<$G$9,0,IF(I17>$G$10,1,(I17-$G$9)/($G$10-$G$9))) -> 1 | V17: 14 | W17: 0.2058823529 | X17: 0.8207920883 | Y17: 5689 | AA17: 0 | AK17: 0.35 | AL17: 0.3853204664
A18: 15 | B18: 1950 | C18: 3177 | E18: 2000 | F18: 9 | G18: =F18/SUM($F$17:$F$32) -> 0.1343283582 | H18: =H17+G18 -> 0.1791044776 | I18: =AVERAGE(E17:E18) -> 1500 | K18: =IF(I18<$G$9,0,IF(I18>$G$10,1,(I18-$G$9)/($G$10-$G$9))) -> 1 | V18: 15 | W18: 0.2205882353 | X18: 0.7702080819 | Y18: 5665 | AA18: 0 | AK18: 0.3 | AL18: 0.5244005127 | AP18: =IF(AO18<16,AO18+1,AO18) -> 
A19: 16 | B19: 1951 | C19: 3419 | E19: 3000 | F19: 15 | G19: 0.223880597 | H19: =H18+G19 -> 0.4029850746 | I19: =AVERAGE(E18:E19) -> 2500 | K19: 1 | V19: 16 | W19: 0.2352941176 | X19: 0.721522284 | Y19: 5646 | AA19: 0 | AK19: 0.25 | AL19: 0.6744897502 | AP19: =IF(AO19<16,AO19+1,AO19) -> 
A20: 17 | B20: 1952 | C20: 746 | E20: 4000 | F20: 9 | G20: 0.1343283582 | H20: 0.5373134328 | I20: 3500 | K20: 1 | V20: 17 | W20: 0.25 | X20: 0.6744897502 | Y20: 5632 | AA20: 0 | AK20: 0.2 | AL20: 0.8416212336 | AP20: =IF(AO20<16,AO20+1,AO20) -> 
A21: 18 | B21: 1953 | C21: 5632 | E21: 5000 | F21: 10 | G21: 0.1492537313 | H21: 0.6865671642 | I21: 4500 | K21: 1 | V21: 18 | W21: 0.2647058824 | X21: 0.6289042176 | Y21: 5556 | AA21: 0 | AK21: 0.15 | AL21: 1.036433389
A22: 19 | B22: 1954 | C22: 1659 | E22: 6000 | F22: 8 | G22: 0.1194029851 | H22: 0.8059701493 | I22: 5500 | K22: 1 | V22: 19 | W22: 0.2794117647 | X22: 0.5845898571 | Y22: 5299 | AA22: 0 | AK22: 0.1 | AL22: 1.281551566
A23: 20 | B23: 1955 | C23: 4539 | E23: 7000 | F23: 2 | G23: 0.02985074627 | H23: 0.8358208955 | I23: 6500 | K23: 1 | V23: 20 | W23: 0.2941176471 | X23: 0.5413950851 | Y23: 5281 | AA23: 0 | AK23: 0.05 | AL23: 1.644853627
A24: 21 | B24: 1956 | C24: 2986 | E24: 8000 | F24: 3 | G24: 0.0447761194 | H24: 0.8805970149 | I24: 7500 | K24: 1 | V24: 21 | W24: 0.3088235294 | X24: 0.4991878421 | Y24: 5057 | AA24: 0 | AK24: 0.02 | AL24: 2.053748911
A25: 22 | B25: 1957 | C25: 6849 | E25: 9000 | F25: 2 | G25: 0.02985074627 | H25: 0.9104477612 | I25: 8500 | K25: 1 | V25: 22 | W25: 0.3235294118 | X25: 0.457851931 | Y25: 4700 | AA25: 0 | AK25: 0.01 | AL25: 2.326347874
A26: 23 | B26: 1958 | C26: 1549 | E26: 10000 | F26: 2 | G26: 0.02985074627 | H26: 0.9402985075 | I26: 9500 | K26: 1 | V26: 23 | W26: 0.3382352941 | X26: 0.4172841394 | Y26: 4539 | AA26: 0
A27: 24 | B27: 1959 | C27: 4051 | E27: 11000 | F27: 2 | G27: 0.02985074627 | H27: 0.9701492537 | I27: 10500 | K27: 1 | V27: 24 | W27: 0.3529411765 | X27: 0.3773919438 | Y27: 4461 | AA27: 0
A28: 25 | B28: 1960 | C28: 975 | E28: 12000 | F28: 0 | G28: 0 | H28: 0.9701492537 | I28: 11500 | K28: 1 | V28: 25 | W28: 0.3676470588 | X28: 0.3380916568 | Y28: 4355 | AA28: 0
A29: 26 | B29: 1961 | C29: 1260 | E29: 13000 | F29: 1 | G29: 0.01492537313 | H29: 0.9850746269 | I29: 12500 | K29: 1 | V29: 26 | W29: 0.3823529412 | X29: 0.2993069105 | Y29: 4294 | AA29: 0 | AL29: 0 | AM29: 0
A30: 27 | B30: 1962 | C30: 4355 | E30: 14000 | F30: 0 | G30: 0 | H30: 0.9850746269 | I30: 13500 | K30: 1 | V30: 27 | W30: 0.3970588235 | X30: 0.2609674004 | Y30: 4214 | AA30: 0 | AL30: 1 | AM30: 16000
A31: 28 | B31: 1963 | C31: 9622 | E31: 15000 | F31: 1 | G31: 0.01492537313 | H31: 1 | I31: 14500 | K31: 1 | V31: 28 | W31: 0.4117647059 | X31: 0.2230078309 | Y31: 4182 | AA31: 0
A32: 29 | B32: 1964 | C32: 5299 | E32: 16000 | F32: 0 | G32: 0 | H32: 1 | I32: 15500 | K32: 1 | V32: 29 | W32: 0.4264705882 | X32: 0.1853670173 | Y32: 4145 | AA32: 0 | AL32: 1e-05 | AM32: 100000
A33: 30 | B33: 1965 | C33: 7093 | V33: 30 | W33: 0.4411764706 | X33: 0.1479871097 | Y33: 4051 | AA33: 0 | AK33: 0.95 | AL33: =NORMSINV(1-AK33) -> -1.644853627 | AM33: =AL33 -> -1.644853627 | AN33: 0 | AO33: 100
A34: 31 | B34: 1966 | C34: 14367 | V34: 31 | W34: 0.4558823529 | X34: 0.1108129123 | Y34: 4043 | AA34: 0 | AK34: 0.9 | AL34: =NORMSINV(1-AK34) -> -1.281551566 | AM34: =AL34 -> -1.281551566 | AN34: 0 | AO34: 100
A35: 32 | B35: 1967 | C35: 2626 | V35: 32 | W35: 0.4705882353 | X35: 0.07379127381 | Y35: 3914 | AA35: 0 | AK35: 0.75 | AL35: -0.6744897502 | AM35: -0.6744897502 | AN35: 0 | AO35: 100
A36: 33 | B36: 1968 | C36: 1898 | V36: 33 | W36: 0.4852941176 | X36: 0.03687053266 | Y36: 3552 | AA36: 0 | AK36: 0.5 | AL36: 0 | AM36: 0 | AN36: 0 | AO36: 100
A37: 34 | B37: 1969 | C37: 8273 | V37: 34 | W37: 0.5 | X37: 0 | Y37: 3419 | AA37: 0 | AK37: 0.25 | AL37: 0.6744897502 | AM37: 0.6744897502 | AN37: 0 | AO37: 100
A38: 35 | B38: 1970 | C38: 5646 | V38: 35 | W38: 0.5147058824 | X38: -0.03687053266 | Y38: 3354 | AA38: 0 | AK38: 0.1 | AL38: 1.281551566 | AM38: 1.281551566 | AN38: 0 | AO38: 100
A39: 36 | B39: 1971 | C39: 3552 | V39: 36 | W39: 0.5294117647 | X39: -0.07379127381 | Y39: 3316 | AA39: 0 | AK39: 0.05 | AL39: 1.644853627 | AM39: 1.644853627 | AN39: 0 | AO39: 100
A40: 37 | B40: 1972 | C40: 2041 | V40: 37 | W40: 0.5441176471 | X40: -0.1108129123 | Y40: 3278 | AA40: 0 | AK40: 0.02 | AL40: 2.053748911 | AM40: 2.053748911 | AN40: 0 | AO40: 100
A41: 38 | B41: 1973 | C41: 2700 | V41: 38 | W41: 0.5588235294 | X41: -0.1479871097 | Y41: 3270 | AA41: 0 | AK41: 0.01 | AL41: 2.326347874 | AM41: 2.326347874 | AN41: 0 | AO41: 100
A42: 39 | B42: 1974 | C42: 1545 | V42: 39 | W42: 0.5735294118 | X42: -0.1853670173 | Y42: 3177 | AA42: 0
A43: 40 | B43: 1975 | C43: 2064 | V43: 40 | W43: 0.5882352941 | X43: -0.2230078309 | Y43: 3165 | AA43: 0
A44: 41 | B44: 1976 | C44: 1851 | V44: 41 | W44: 0.6029411765 | X44: -0.2609674004 | Y44: 2986 | AA44: 0
A45: 42 | B45: 1977 | C45: 6610 | V45: 42 | W45: 0.6176470588 | X45: -0.2993069105 | Y45: 2864 | AA45: 0
A46: 43 | B46: 1978 | C46: 1211 | V46: 43 | W46: 0.6323529412 | X46: -0.3380916568 | Y46: 2845 | AA46: 0
A47: 44 | B47: 1979 | C47: 2712 | V47: 44 | W47: 0.6470588235 | X47: -0.3773919438 | Y47: 2828 | AA47: 0
A48: 45 | B48: 1980 | C48: 2828 | V48: 45 | W48: 0.6617647059 | X48: -0.4172841394 | Y48: 2755 | AA48: 0
A49: 46 | B49: 1981 | C49: 3914 | V49: 46 | W49: 0.6764705882 | X49: -0.457851931 | Y49: 2712 | AA49: 0
A50: 47 | B50: 1982 | C50: 10694 | V50: 47 | W50: 0.6911764706 | X50: -0.4991878421 | Y50: 2700 | AA50: 0
A51: 48 | B51: 1983 | C51: 2864 | V51: 48 | W51: 0.7058823529 | X51: -0.5413950851 | Y51: 2629 | AA51: 0
A52: 49 | B52: 1984 | C52: 2021 | V52: 49 | W52: 0.7205882353 | X52: -0.5845898571 | Y52: 2626 | AA52: 0
A53: 50 | B53: 1985 | C53: 9478 | V53: 50 | W53: 0.7352941176 | X53: -0.6289042176 | Y53: 2488 | AA53: 0
A54: 51 | B54: 1986 | C54: 1556 | V54: 51 | W54: 0.75 | X54: -0.6744897502 | Y54: 2441 | AA54: 0
A55: 52 | B55: 1987 | C55: 3354 | V55: 52 | W55: 0.7647058824 | X55: -0.721522284 | Y55: 2220 | AA55: 0
A56: 53 | B56: 1988 | C56: 2488 | V56: 53 | W56: 0.7794117647 | X56: -0.7702080819 | Y56: 2064 | AA56: 0
A57: 54 | B57: 1989 | C57: 4700 | V57: 54 | W57: 0.7941176471 | X57: -0.8207920883 | Y57: 2041 | AA57: 0
A58: 55 | B58: 1990 | C58: 7905 | V58: 55 | W58: 0.8088235294 | X58: -0.8735691346 | Y58: 2021 | AA58: 0
A59: 56 | B59: 1991 | C59: 4145 | V59: 56 | W59: 0.8235294118 | X59: -0.9288994916 | Y59: 1908 | AA59: 0
A60: 57 | B60: 1992 | C60: 5665 | V60: 57 | W60: 0.8382352941 | X60: -0.987230992 | Y60: 1898 | AA60: 0
A61: 58 | B61: 1993 | C61: 3165 | V61: 58 | W61: 0.8529411765 | X61: -1.049131398 | Y61: 1851 | AA61: 0
A62: 59 | B62: 1994 | C62: 4043 | V62: 59 | W62: 0.8676470588 | X62: -1.115337358 | Y62: 1659 | AA62: 0
A63: 60 | B63: 1995 | C63: 7391 | V63: 60 | W63: 0.8823529412 | X63: -1.186831433 | Y63: 1556 | AA63: 0
A64: 61 | B64: 1996 | C64: 1908 | V64: 61 | W64: 0.8970588235 | X64: -1.264969245 | Y64: 1549 | AA64: 0
A65: 62 | B65: 1997 | C65: 4182 | V65: 62 | W65: 0.9117647059 | X65: -1.35170224 | Y65: 1545 | AA65: 0
A66: 63 | B66: 1998 | C66: 2845 | V66: 63 | W66: 0.9264705882 | X66: -1.449998909 | Y66: 1260 | AA66: 0
A67: 64 | B67: 1999 | C67: 2220 | V67: 64 | W67: 0.9411764706 | X67: -1.564726471 | Y67: 1211 | AA67: 0
A68: 65 | B68: 2000 | C68: 5689 | V68: 65 | W68: 0.9558823529 | X68: -1.704780905 | Y68: 992 | Z68: =1-(Y68-$G$9)/($G$10-$G$9) ->  | AA68: =$G$9+($G$10-$G$9)*(1-W68) -> 0
A69: 66 | B69: 2001 | C69: 4214 | V69: 66 | W69: =V69/($V$70+1) -> 0.9705882353 | X69: =NORMSINV(1-W69) -> -1.88950996 | Y69: =LARGE($C$4:$C$70,V69) -> 975 | AA69: 0
A70: 67 | B70: 2002 | C70: 2755 | V70: 67 | W70: 0.9852941176 | X70: -2.177923069 | Y70: 746 | AA70: 0

Sheet Triangular
A1: Fitting a probability distribution to data | W1: Weibull | Z1: =CORREL(Z4:Z70,W4:W70) ->  | AO1: interpolation | AQ1: A | AR1: B | AS1: C | AT1: E
C2: annual | W2: plotting | X2: deviate of | Y2: ranked | Z2: triangular distribution | AQ2: first | AS2: second
B3: year | C3: peak flow | W3: position | X3: plot pos | Y3: flows | Z3: p | AA3: quantile | AK3: exc prob | AL3: dev | AM3: CDF | AO3: lower | AP3: upper | AQ3: lower | AR3: upper | AS3: lower | AT3: upper | AU3: interp
A4: 1 | B4: 1936 | C4: 4294 | V4: 1 | W4: =V4/($V$70+1) -> 0.01470588235 | X4: =NORMSINV(1-W4) -> 2.177923069 | Y4: =LARGE($C$4:$C$70,V4) -> 14367 | Z4: =1-IF(Y4<=$G$10,(Y4-$G$9)^2/($G$11-$G$9)/($G$10-$G$9),1-($G$11-Y4)^2/($G$11-$G$9)/($G$11-$G$10)) ->  | AA4: =IF((1-W4)<$AK$1,$G$9+SQRT((1-W4)*($G$11-$G$9)*($G$10-$G$9)),$G$11-SQRT(W4*($G$11-$G$9)*($G$11-$G$10))) -> 0 | AK4: 0.98 | AL4: =NORMSINV(1-AK4) -> -2.053748911 | AM4: =AU4 ->  | AO4: =MATCH(1-AK4,$K$17:$K$32,1) ->  | AP4: =IF(AO4<16,AO4+1,AO4) ->  | AQ4: =IF(AO4<>AP4,INDEX($I$17:$I$32,AO4),INDEX($I$17:$I$32,AO4-1)) ->  | AR4: =INDEX($I$17:$I$32,AP4) ->  | AS4: =IF(AO4<>AP4,INDEX($K$17:$K$32,AO4),INDEX($K$17:$K$32,AO4-1)) ->  | AT4: =INDEX($K$17:$K$32,AP4) ->  | AU4: =AQ4+(AR4-AQ4)*(1-AK4-AS4)/(AT4-AS4) -> 
A5: 2 | B5: 1937 | C5: 992 | V5: 2 | W5: =V5/($V$70+1) -> 0.02941176471 | X5: =NORMSINV(1-W5) -> 1.88950996 | Y5: =LARGE($C$4:$C$70,V5) -> 12007 | Z5: =1-IF(Y5<=$G$10,(Y5-$G$9)^2/($G$11-$G$9)/($G$10-$G$9),1-($G$11-Y5)^2/($G$11-$G$9)/($G$11-$G$10)) ->  | AA5: 0 | AK5: 0.95 | AL5: -1.644853627 | AM5: =AU5 ->  | AO5: =MATCH(1-AK5,$K$17:$K$32,1) ->  | AQ5: =IF(AO5<>AP5,INDEX($I$17:$I$32,AO5),INDEX($I$17:$I$32,AO5-1)) ->  | AR5: =INDEX($I$17:$I$32,AP5) ->  | AS5: =IF(AO5<>AP5,INDEX($K$17:$K$32,AO5),INDEX($K$17:$K$32,AO5-1)) ->  | AT5: =INDEX($K$17:$K$32,AP5) ->  | AU5: =AQ5+(AR5-AQ5)*(1-AK5-AS5)/(AT5-AS5) -> 
A6: 3 | B6: 1938 | C6: 2629 | F6: fit a triangular distribution | V6: 3 | W6: 0.04411764706 | X6: 1.704780905 | Y6: 10694 | AA6: 0 | AK6: 0.9 | AL6: -1.281551566
A7: 4 | B7: 1939 | C7: 8157 | V7: 4 | W7: 0.05882352941 | X7: 1.564726471 | Y7: 10192 | AA7: 0 | AK7: 0.85 | AL7: -1.036433389
A8: 5 | B8: 1940 | C8: 3316 | F8: parameters are: | V8: 5 | W8: 0.07352941176 | X8: 1.449998909 | Y8: 9622 | AA8: 0 | AK8: 0.8 | AL8: -0.8416212336
A9: 6 | B9: 1941 | C9: 10192 | F9: min = | H9: a | V9: 6 | W9: 0.08823529412 | X9: 1.35170224 | Y9: 9478 | AA9: 0 | AK9: 0.75 | AL9: -0.6744897502
A10: 7 | B10: 1942 | C10: 3270 | F10: mode = | H10: c | V10: 7 | W10: 0.1029411765 | X10: 1.264969245 | Y10: 8273 | AA10: 0 | AK10: 0.7 | AL10: -0.5244005127
A11: 8 | B11: 1943 | C11: 12007 | F11: max = | H11: b | V11: 8 | W11: 0.1176470588 | X11: 1.186831433 | Y11: 8157 | AA11: 0 | AK11: 0.65 | AL11: -0.3853204664
A12: 9 | B12: 1944 | C12: 2441 | V12: 9 | W12: 0.1323529412 | X12: 1.115337358 | Y12: 7905 | AA12: 0 | AK12: 0.6 | AL12: -0.2533471031
A13: 10 | B13: 1945 | C13: 5057 | V13: 10 | W13: 0.1470588235 | X13: 1.049131398 | Y13: 7391 | AA13: 0 | AK13: 0.55 | AL13: -0.1256613469
A14: 11 | B14: 1946 | C14: 4461 | V14: 11 | W14: 0.1617647059 | X14: 0.987230992 | Y14: 7093 | AA14: 0 | AK14: 0.5 | AL14: -2.504624782e-15
A15: 12 | B15: 1947 | C15: 5556 | E15: histogram | I15: Triangular Distribution PDF and CDF | V15: 12 | W15: 0.1764705882 | X15: 0.9288994916 | Y15: 6849 | AA15: 0 | AK15: 0.45 | AL15: 0.1256613469
A16: 13 | B16: 1948 | C16: 3278 | E16: 0 | F16: frequency() | G16: rel freq. | H16: cum. freq | I16: index | J16: PDF | K16: CDF | V16: 13 | W16: 0.1911764706 | X16: 0.8735691346 | Y16: 6610 | AA16: 0 | AK16: 0.4 | AL16: 0.2533471031
A17: 14 | B17: 1949 | C17: 5281 | E17: 1000 | F17: =FREQUENCY(C4:C70,E17:E32) -> 3 | G17: =F17/SUM($F$17:$F$32) -> 0.0447761194 | H17: =G17 -> 0.0447761194 | I17: =AVERAGE(E16:E17) -> 500 | J17: =IF(I17<=$G$10,2*(I17-$G$9)/($G$11-$G$9)/($G$10-$G$9),2*($G$11-I17)/($G$11-$G$9)/($G$11-$G$10))*1000 ->  | K17: =IF(I17<=$G$10,(I17-$G$9)^2/($G$11-$G$9)/($G$10-$G$9),1-($G$11-I17)^2/($G$11-$G$9)/($G$11-$G$10)) ->  | V17: 14 | W17: 0.2058823529 | X17: 0.8207920883 | Y17: 5689 | AA17: 0 | AK17: 0.35 | AL17: 0.3853204664
A18: 15 | B18: 1950 | C18: 3177 | E18: 2000 | F18: 9 | G18: =F18/SUM($F$17:$F$32) -> 0.1343283582 | H18: =H17+G18 -> 0.1791044776 | I18: =AVERAGE(E17:E18) -> 1500 | J18: =IF(I18<=$G$10,2*(I18-$G$9)/($G$11-$G$9)/($G$10-$G$9),2*($G$11-I18)/($G$11-$G$9)/($G$11-$G$10))*1000 ->  | K18: =IF(I18<=$G$10,(I18-$G$9)^2/($G$11-$G$9)/($G$10-$G$9),1-($G$11-I18)^2/($G$11-$G$9)/($G$11-$G$10)) ->  | V18: 15 | W18: 0.2205882353 | X18: 0.7702080819 | Y18: 5665 | AA18: 0 | AK18: 0.3 | AL18: 0.5244005127 | AP18: =IF(AO18<16,AO18+1,AO18) -> 
A19: 16 | B19: 1951 | C19: 3419 | E19: 3000 | F19: 15 | G19: 0.223880597 | H19: =H18+G19 -> 0.4029850746 | I19: =AVERAGE(E18:E19) -> 2500 | J19: =IF(I19<=$G$10,2*(I19-$G$9)/($G$11-$G$9)/($G$10-$G$9),2*($G$11-I19)/($G$11-$G$9)/($G$11-$G$10))*1000 ->  | K19: =IF(I19<=$G$10,(I19-$G$9)^2/($G$11-$G$9)/($G$10-$G$9),1-($G$11-I19)^2/($G$11-$G$9)/($G$11-$G$10)) ->  | V19: 16 | W19: 0.2352941176 | X19: 0.721522284 | Y19: 5646 | AA19: 0 | AK19: 0.25 | AL19: 0.6744897502 | AP19: =IF(AO19<16,AO19+1,AO19) -> 
A20: 17 | B20: 1952 | C20: 746 | E20: 4000 | F20: 9 | G20: 0.1343283582 | H20: 0.5373134328 | I20: 3500 | V20: 17 | W20: 0.25 | X20: 0.6744897502 | Y20: 5632 | AA20: 0 | AK20: 0.2 | AL20: 0.8416212336 | AO20: =MATCH(1-AK20,$K$17:$K$32,1) ->  | AP20: =IF(AO20<16,AO20+1,AO20) -> 
A21: 18 | B21: 1953 | C21: 5632 | E21: 5000 | F21: 10 | G21: 0.1492537313 | H21: 0.6865671642 | I21: 4500 | V21: 18 | W21: 0.2647058824 | X21: 0.6289042176 | Y21: 5556 | AA21: 0 | AK21: 0.15 | AL21: 1.036433389
A22: 19 | B22: 1954 | C22: 1659 | E22: 6000 | F22: 8 | G22: 0.1194029851 | H22: 0.8059701493 | I22: 5500 | V22: 19 | W22: 0.2794117647 | X22: 0.5845898571 | Y22: 5299 | AA22: 0 | AK22: 0.1 | AL22: 1.281551566
A23: 20 | B23: 1955 | C23: 4539 | E23: 7000 | F23: 2 | G23: 0.02985074627 | H23: 0.8358208955 | I23: 6500 | V23: 20 | W23: 0.2941176471 | X23: 0.5413950851 | Y23: 5281 | AA23: 0 | AK23: 0.05 | AL23: 1.644853627
A24: 21 | B24: 1956 | C24: 2986 | E24: 8000 | F24: 3 | G24: 0.0447761194 | H24: 0.8805970149 | I24: 7500 | V24: 21 | W24: 0.3088235294 | X24: 0.4991878421 | Y24: 5057 | AA24: 0 | AK24: 0.02 | AL24: 2.053748911
A25: 22 | B25: 1957 | C25: 6849 | E25: 9000 | F25: 2 | G25: 0.02985074627 | H25: 0.9104477612 | I25: 8500 | V25: 22 | W25: 0.3235294118 | X25: 0.457851931 | Y25: 4700 | AA25: 0 | AK25: 0.01 | AL25: 2.326347874
A26: 23 | B26: 1958 | C26: 1549 | E26: 10000 | F26: 2 | G26: 0.02985074627 | H26: 0.9402985075 | I26: 9500 | V26: 23 | W26: 0.3382352941 | X26: 0.4172841394 | Y26: 4539 | AA26: 0
A27: 24 | B27: 1959 | C27: 4051 | E27: 11000 | F27: 2 | G27: 0.02985074627 | H27: 0.9701492537 | I27: 10500 | V27: 24 | W27: 0.3529411765 | X27: 0.3773919438 | Y27: 4461 | AA27: 0
A28: 25 | B28: 1960 | C28: 975 | E28: 12000 | F28: 0 | G28: 0 | H28: 0.9701492537 | I28: 11500 | V28: 25 | W28: 0.3676470588 | X28: 0.3380916568 | Y28: 4355 | AA28: 0
A29: 26 | B29: 1961 | C29: 1260 | E29: 13000 | F29: 1 | G29: 0.01492537313 | H29: 0.9850746269 | I29: 12500 | V29: 26 | W29: 0.3823529412 | X29: 0.2993069105 | Y29: 4294 | AA29: 0
A30: 27 | B30: 1962 | C30: 4355 | E30: 14000 | F30: 0 | G30: 0 | H30: 0.9850746269 | I30: 13500 | V30: 27 | W30: 0.3970588235 | X30: 0.2609674004 | Y30: 4214 | AA30: 0
A31: 28 | B31: 1963 | C31: 9622 | E31: 15000 | F31: 1 | G31: 0.01492537313 | H31: 1 | I31: 14500 | V31: 28 | W31: 0.4117647059 | X31: 0.2230078309 | Y31: 4182 | AA31: 0
A32: 29 | B32: 1964 | C32: 5299 | E32: 16000 | F32: 0 | G32: 0 | H32: 1 | I32: 15500 | V32: 29 | W32: 0.4264705882 | X32: 0.1853670173 | Y32: 4145 | AA32: 0
A33: 30 | B33: 1965 | C33: 7093 | V33: 30 | W33: 0.4411764706 | X33: 0.1479871097 | Y33: 4051 | AA33: 0 | AU33: 0 | AV33: 16000
A34: 31 | B34: 1966 | C34: 14367 | V34: 31 | W34: 0.4558823529 | X34: 0.1108129123 | Y34: 4043 | AA34: 0 | AT34: 0.95 | AU34: =NORMSINV(1-AT34) -> -1.644853627 | AV34: =AU34 -> -1.644853627 | AW34: 0
A35: 32 | B35: 1967 | C35: 2626 | V35: 32 | W35: 0.4705882353 | X35: 0.07379127381 | Y35: 3914 | AA35: 0 | AT35: 0.9 | AU35: =NORMSINV(1-AT35) -> -1.281551566 | AV35: =AU35 -> -1.281551566 | AW35: 0
A36: 33 | B36: 1968 | C36: 1898 | V36: 33 | W36: 0.4852941176 | X36: 0.03687053266 | Y36: 3552 | AA36: 0 | AT36: 0.75 | AU36: -0.6744897502 | AV36: -0.6744897502 | AW36: 0
A37: 34 | B37: 1969 | C37: 8273 | V37: 34 | W37: 0.5 | X37: 0 | Y37: 3419 | AA37: 0 | AT37: 0.5 | AU37: 0 | AV37: 0 | AW37: 0
A38: 35 | B38: 1970 | C38: 5646 | V38: 35 | W38: 0.5147058824 | X38: -0.03687053266 | Y38: 3354 | AA38: 0 | AT38: 0.25 | AU38: 0.6744897502 | AV38: 0.6744897502 | AW38: 0
A39: 36 | B39: 1971 | C39: 3552 | V39: 36 | W39: 0.5294117647 | X39: -0.07379127381 | Y39: 3316 | AA39: 0 | AT39: 0.1 | AU39: 1.281551566 | AV39: 1.281551566 | AW39: 0
A40: 37 | B40: 1972 | C40: 2041 | V40: 37 | W40: 0.5441176471 | X40: -0.1108129123 | Y40: 3278 | AA40: 0 | AT40: 0.05 | AU40: 1.644853627 | AV40: 1.644853627 | AW40: 0
A41: 38 | B41: 1973 | C41: 2700 | V41: 38 | W41: 0.5588235294 | X41: -0.1479871097 | Y41: 3270 | AA41: 0 | AT41: 0.02 | AU41: 2.053748911 | AV41: 2.053748911 | AW41: 0
A42: 39 | B42: 1974 | C42: 1545 | V42: 39 | W42: 0.5735294118 | X42: -0.1853670173 | Y42: 3177 | AA42: 0 | AT42: 0.01 | AU42: 2.326347874 | AV42: 2.326347874 | AW42: 0
A43: 40 | B43: 1975 | C43: 2064 | V43: 40 | W43: 0.5882352941 | X43: -0.2230078309 | Y43: 3165 | AA43: 0
A44: 41 | B44: 1976 | C44: 1851 | V44: 41 | W44: 0.6029411765 | X44: -0.2609674004 | Y44: 2986 | AA44: 0
A45: 42 | B45: 1977 | C45: 6610 | V45: 42 | W45: 0.6176470588 | X45: -0.2993069105 | Y45: 2864 | AA45: 0
A46: 43 | B46: 1978 | C46: 1211 | V46: 43 | W46: 0.6323529412 | X46: -0.3380916568 | Y46: 2845 | AA46: 0
A47: 44 | B47: 1979 | C47: 2712 | V47: 44 | W47: 0.6470588235 | X47: -0.3773919438 | Y47: 2828 | AA47: 0
A48: 45 | B48: 1980 | C48: 2828 | V48: 45 | W48: 0.6617647059 | X48: -0.4172841394 | Y48: 2755 | AA48: 0
A49: 46 | B49: 1981 | C49: 3914 | V49: 46 | W49: 0.6764705882 | X49: -0.457851931 | Y49: 2712 | AA49: 0
A50: 47 | B50: 1982 | C50: 10694 | V50: 47 | W50: 0.6911764706 | X50: -0.4991878421 | Y50: 2700 | AA50: 0
A51: 48 | B51: 1983 | C51: 2864 | V51: 48 | W51: 0.7058823529 | X51: -0.5413950851 | Y51: 2629 | AA51: 0
A52: 49 | B52: 1984 | C52: 2021 | V52: 49 | W52: 0.7205882353 | X52: -0.5845898571 | Y52: 2626 | AA52: 0
A53: 50 | B53: 1985 | C53: 9478 | V53: 50 | W53: 0.7352941176 | X53: -0.6289042176 | Y53: 2488 | AA53: 0
A54: 51 | B54: 1986 | C54: 1556 | V54: 51 | W54: 0.75 | X54: -0.6744897502 | Y54: 2441 | AA54: 0
A55: 52 | B55: 1987 | C55: 3354 | V55: 52 | W55: 0.7647058824 | X55: -0.721522284 | Y55: 2220 | AA55: 0
A56: 53 | B56: 1988 | C56: 2488 | V56: 53 | W56: 0.7794117647 | X56: -0.7702080819 | Y56: 2064 | AA56: 0
A57: 54 | B57: 1989 | C57: 4700 | V57: 54 | W57: 0.7941176471 | X57: -0.8207920883 | Y57: 2041 | AA57: 0
A58: 55 | B58: 1990 | C58: 7905 | V58: 55 | W58: 0.8088235294 | X58: -0.8735691346 | Y58: 2021 | AA58: 0
A59: 56 | B59: 1991 | C59: 4145 | V59: 56 | W59: 0.8235294118 | X59: -0.9288994916 | Y59: 1908 | AA59: 0
A60: 57 | B60: 1992 | C60: 5665 | V60: 57 | W60: 0.8382352941 | X60: -0.987230992 | Y60: 1898 | AA60: 0
A61: 58 | B61: 1993 | C61: 3165 | V61: 58 | W61: 0.8529411765 | X61: -1.049131398 | Y61: 1851 | AA61: 0
A62: 59 | B62: 1994 | C62: 4043 | V62: 59 | W62: 0.8676470588 | X62: -1.115337358 | Y62: 1659 | AA62: 0
A63: 60 | B63: 1995 | C63: 7391 | V63: 60 | W63: 0.8823529412 | X63: -1.186831433 | Y63: 1556 | AA63: 0
A64: 61 | B64: 1996 | C64: 1908 | V64: 61 | W64: 0.8970588235 | X64: -1.264969245 | Y64: 1549 | AA64: 0
A65: 62 | B65: 1997 | C65: 4182 | V65: 62 | W65: 0.9117647059 | X65: -1.35170224 | Y65: 1545 | AA65: 0
A66: 63 | B66: 1998 | C66: 2845 | V66: 63 | W66: 0.9264705882 | X66: -1.449998909 | Y66: 1260 | AA66: 0
A67: 64 | B67: 1999 | C67: 2220 | V67: 64 | W67: 0.9411764706 | X67: -1.564726471 | Y67: 1211 | AA67: 0
A68: 65 | B68: 2000 | C68: 5689 | V68: 65 | W68: 0.9558823529 | X68: -1.704780905 | Y68: 992 | AA68: =IF((1-W68)<$AK$1,$G$9+SQRT((1-W68)*($G$11-$G$9)*($G$10-$G$9)),$G$11-SQRT(W68*($G$11-$G$9)*($G$11-$G$10))) -> 0
A69: 66 | B69: 2001 | C69: 4214 | V69: 66 | W69: =V69/($V$70+1) -> 0.9705882353 | X69: =NORMSINV(1-W69) -> -1.88950996 | Y69: =LARGE($C$4:$C$70,V69) -> 975 | Z69: =1-IF(Y69<=$G$10,(Y69-$G$9)^2/($G$11-$G$9)/($G$10-$G$9),1-($G$11-Y69)^2/($G$11-$G$9)/($G$11-$G$10)) ->  | AA69: 0
A70: 67 | B70: 2002 | C70: 2755 | V70: 67 | W70: 0.9852941176 | X70: -2.177923069 | Y70: 746 | AA70: 0

Sheet Normal
A1: Fitting a probability distribution to data | W1: Weibull | Z1: =CORREL(Z4:Z70,W4:W70) -> 
C2: annual | W2: plotting | X2: deviate of | Y2: ranked | Z2: Normal Distribution
B3: year | C3: peak flow | W3: position | X3: plot pos | Y3: flows | Z3: p | AA3: quantile | AK3: exc prob | AL3: dev | AM3: CDF
A4: 1 | B4: 1936 | C4: 4294 | V4: 1 | W4: =V4/($V$70+1) -> 0.01470588235 | X4: =NORMSINV(1-W4) -> 2.177923069 | Y4: =LARGE($C$4:$C$70,V4) -> 14367 | Z4: =1-_xlfn.NORM.DIST(Y4,$G$9,$G$10,TRUE) ->  | AA4: =_xlfn.NORM.INV(1-W4,$G$9,$G$10) ->  | AK4: 0.98 | AL4: =NORMSINV(1-AK4) -> -2.053748911 | AM4: =NORMINV(1-AK4,$G$9,$G$10) -> 
A5: 2 | B5: 1937 | C5: 992 | V5: 2 | W5: =V5/($V$70+1) -> 0.02941176471 | X5: =NORMSINV(1-W5) -> 1.88950996 | Y5: =LARGE($C$4:$C$70,V5) -> 12007 | Z5: =1-_xlfn.NORM.DIST(Y5,$G$9,$G$10,TRUE) ->  | AA5: =_xlfn.NORM.INV(1-W5,$G$9,$G$10) ->  | AK5: 0.95 | AL5: -1.644853627 | AM5: =NORMINV(1-AK5,$G$9,$G$10) -> 
A6: 3 | B6: 1938 | C6: 2629 | F6: fit a Normal distribution | V6: 3 | W6: 0.04411764706 | X6: 1.704780905 | Y6: 10694 | AK6: 0.9 | AL6: -1.281551566
A7: 4 | B7: 1939 | C7: 8157 | V7: 4 | W7: 0.05882352941 | X7: 1.564726471 | Y7: 10192 | AK7: 0.85 | AL7: -1.036433389
A8: 5 | B8: 1940 | C8: 3316 | F8: parameters are: | V8: 5 | W8: 0.07352941176 | X8: 1.449998909 | Y8: 9622 | AK8: 0.8 | AL8: -0.8416212336
A9: 6 | B9: 1941 | C9: 10192 | F9: mean = | V9: 6 | W9: 0.08823529412 | X9: 1.35170224 | Y9: 9478 | AK9: 0.75 | AL9: -0.6744897502
A10: 7 | B10: 1942 | C10: 3270 | F10: stdev = | V10: 7 | W10: 0.1029411765 | X10: 1.264969245 | Y10: 8273 | AK10: 0.7 | AL10: -0.5244005127 | AP10: 0 | AQ10: 16000
A11: 8 | B11: 1943 | C11: 12007 | V11: 8 | W11: 0.1176470588 | X11: 1.186831433 | Y11: 8157 | AK11: 0.65 | AL11: -0.3853204664 | AO11: 0.95 | AP11: =NORMSINV(1-AO11) -> -1.644853627 | AQ11: =AP11 -> -1.644853627 | AR11: 0
A12: 9 | B12: 1944 | C12: 2441 | V12: 9 | W12: 0.1323529412 | X12: 1.115337358 | Y12: 7905 | AK12: 0.6 | AL12: -0.2533471031 | AO12: 0.9 | AP12: =NORMSINV(1-AO12) -> -1.281551566 | AQ12: =AP12 -> -1.281551566 | AR12: 0
A13: 10 | B13: 1945 | C13: 5057 | V13: 10 | W13: 0.1470588235 | X13: 1.049131398 | Y13: 7391 | AK13: 0.55 | AL13: -0.1256613469 | AO13: 0.75 | AP13: -0.6744897502 | AQ13: -0.6744897502 | AR13: 0
A14: 11 | B14: 1946 | C14: 4461 | V14: 11 | W14: 0.1617647059 | X14: 0.987230992 | Y14: 7093 | AK14: 0.5 | AL14: -2.504624782e-15 | AO14: 0.5 | AP14: 0 | AQ14: 0 | AR14: 0
A15: 12 | B15: 1947 | C15: 5556 | E15: histogram | I15: Normal Distribution PDF and CDF | V15: 12 | W15: 0.1764705882 | X15: 0.9288994916 | Y15: 6849 | AK15: 0.45 | AL15: 0.1256613469 | AO15: 0.25 | AP15: 0.6744897502 | AQ15: 0.6744897502 | AR15: 0
A16: 13 | B16: 1948 | C16: 3278 | E16: 0 | F16: frequency() | G16: rel freq. | H16: cum. freq | I16: index | J16: PDF | K16: CDF | V16: 13 | W16: 0.1911764706 | X16: 0.8735691346 | Y16: 6610 | AK16: 0.4 | AL16: 0.2533471031 | AO16: 0.1 | AP16: 1.281551566 | AQ16: 1.281551566 | AR16: 0
A17: 14 | B17: 1949 | C17: 5281 | E17: 1000 | F17: =FREQUENCY(C4:C70,E17:E32) -> 3 | G17: =F17/SUM($F$17:$F$32) -> 0.0447761194 | H17: =G17 -> 0.0447761194 | I17: =AVERAGE(E16:E17) -> 500 | J17: =NORMDIST(I17,$G$9,$G$10,FALSE)*1000 ->  | K17: =NORMDIST(I17,$G$9,$G$10,TRUE) ->  | V17: 14 | W17: 0.2058823529 | X17: 0.8207920883 | Y17: 5689 | AK17: 0.35 | AL17: 0.3853204664 | AO17: 0.05 | AP17: 1.644853627 | AQ17: 1.644853627 | AR17: 0
A18: 15 | B18: 1950 | C18: 3177 | E18: 2000 | F18: 9 | G18: =F18/SUM($F$17:$F$32) -> 0.1343283582 | H18: =H17+G18 -> 0.1791044776 | I18: =AVERAGE(E17:E18) -> 1500 | J18: =NORMDIST(I18,$G$9,$G$10,FALSE)*1000 ->  | V18: 15 | W18: 0.2205882353 | X18: 0.7702080819 | Y18: 5665 | AK18: 0.3 | AL18: 0.5244005127 | AO18: 0.02 | AP18: 2.053748911 | AQ18: 2.053748911 | AR18: 0
A19: 16 | B19: 1951 | C19: 3419 | E19: 3000 | F19: 15 | G19: 0.223880597 | H19: =H18+G19 -> 0.4029850746 | I19: =AVERAGE(E18:E19) -> 2500 | J19: =NORMDIST(I19,$G$9,$G$10,FALSE)*1000 ->  | V19: 16 | W19: 0.2352941176 | X19: 0.721522284 | Y19: 5646 | AK19: 0.25 | AL19: 0.6744897502 | AO19: 0.01 | AP19: 2.326347874 | AQ19: 2.326347874 | AR19: 0
A20: 17 | B20: 1952 | C20: 746 | E20: 4000 | F20: 9 | G20: 0.1343283582 | H20: 0.5373134328 | I20: 3500 | V20: 17 | W20: 0.25 | X20: 0.6744897502 | Y20: 5632 | AK20: 0.2 | AL20: 0.8416212336
A21: 18 | B21: 1953 | C21: 5632 | E21: 5000 | F21: 10 | G21: 0.1492537313 | H21: 0.6865671642 | I21: 4500 | V21: 18 | W21: 0.2647058824 | X21: 0.6289042176 | Y21: 5556 | AK21: 0.15 | AL21: 1.036433389
A22: 19 | B22: 1954 | C22: 1659 | E22: 6000 | F22: 8 | G22: 0.1194029851 | H22: 0.8059701493 | I22: 5500 | V22: 19 | W22: 0.2794117647 | X22: 0.5845898571 | Y22: 5299 | AK22: 0.1 | AL22: 1.281551566
A23: 20 | B23: 1955 | C23: 4539 | E23: 7000 | F23: 2 | G23: 0.02985074627 | H23: 0.8358208955 | I23: 6500 | V23: 20 | W23: 0.2941176471 | X23: 0.5413950851 | Y23: 5281 | AK23: 0.05 | AL23: 1.644853627
A24: 21 | B24: 1956 | C24: 2986 | E24: 8000 | F24: 3 | G24: 0.0447761194 | H24: 0.8805970149 | I24: 7500 | V24: 21 | W24: 0.3088235294 | X24: 0.4991878421 | Y24: 5057 | AK24: 0.02 | AL24: 2.053748911
A25: 22 | B25: 1957 | C25: 6849 | E25: 9000 | F25: 2 | G25: 0.02985074627 | H25: 0.9104477612 | I25: 8500 | V25: 22 | W25: 0.3235294118 | X25: 0.457851931 | Y25: 4700 | AK25: 0.01 | AL25: 2.326347874
A26: 23 | B26: 1958 | C26: 1549 | E26: 10000 | F26: 2 | G26: 0.02985074627 | H26: 0.9402985075 | I26: 9500 | V26: 23 | W26: 0.3382352941 | X26: 0.4172841394 | Y26: 4539
A27: 24 | B27: 1959 | C27: 4051 | E27: 11000 | F27: 2 | G27: 0.02985074627 | H27: 0.9701492537 | I27: 10500 | V27: 24 | W27: 0.3529411765 | X27: 0.3773919438 | Y27: 4461
A28: 25 | B28: 1960 | C28: 975 | E28: 12000 | F28: 0 | G28: 0 | H28: 0.9701492537 | I28: 11500 | V28: 25 | W28: 0.3676470588 | X28: 0.3380916568 | Y28: 4355
A29: 26 | B29: 1961 | C29: 1260 | E29: 13000 | F29: 1 | G29: 0.01492537313 | H29: 0.9850746269 | I29: 12500 | V29: 26 | W29: 0.3823529412 | X29: 0.2993069105 | Y29: 4294
A30: 27 | B30: 1962 | C30: 4355 | E30: 14000 | F30: 0 | G30: 0 | H30: 0.9850746269 | I30: 13500 | V30: 27 | W30: 0.3970588235 | X30: 0.2609674004 | Y30: 4214
A31: 28 | B31: 1963 | C31: 9622 | E31: 15000 | F31: 1 | G31: 0.01492537313 | H31: 1 | I31: 14500 | V31: 28 | W31: 0.4117647059 | X31: 0.2230078309 | Y31: 4182
A32: 29 | B32: 1964 | C32: 5299 | E32: 16000 | F32: 0 | G32: 0 | H32: 1 | I32: 15500 | V32: 29 | W32: 0.4264705882 | X32: 0.1853670173 | Y32: 4145
A33: 30 | B33: 1965 | C33: 7093 | V33: 30 | W33: 0.4411764706 | X33: 0.1479871097 | Y33: 4051
A34: 31 | B34: 1966 | C34: 14367 | G34: =SUM(G17:G32) -> 1 | V34: 31 | W34: 0.4558823529 | X34: 0.1108129123 | Y34: 4043
A35: 32 | B35: 1967 | C35: 2626 | V35: 32 | W35: 0.4705882353 | X35: 0.07379127381 | Y35: 3914
A36: 33 | B36: 1968 | C36: 1898 | V36: 33 | W36: 0.4852941176 | X36: 0.03687053266 | Y36: 3552
A37: 34 | B37: 1969 | C37: 8273 | V37: 34 | W37: 0.5 | X37: 0 | Y37: 3419
A38: 35 | B38: 1970 | C38: 5646 | V38: 35 | W38: 0.5147058824 | X38: -0.03687053266 | Y38: 3354
A39: 36 | B39: 1971 | C39: 3552 | V39: 36 | W39: 0.5294117647 | X39: -0.07379127381 | Y39: 3316
A40: 37 | B40: 1972 | C40: 2041 | V40: 37 | W40: 0.5441176471 | X40: -0.1108129123 | Y40: 3278
A41: 38 | B41: 1973 | C41: 2700 | V41: 38 | W41: 0.5588235294 | X41: -0.1479871097 | Y41: 3270
A42: 39 | B42: 1974 | C42: 1545 | V42: 39 | W42: 0.5735294118 | X42: -0.1853670173 | Y42: 3177
A43: 40 | B43: 1975 | C43: 2064 | V43: 40 | W43: 0.5882352941 | X43: -0.2230078309 | Y43: 3165
A44: 41 | B44: 1976 | C44: 1851 | V44: 41 | W44: 0.6029411765 | X44: -0.2609674004 | Y44: 2986
A45: 42 | B45: 1977 | C45: 6610 | V45: 42 | W45: 0.6176470588 | X45: -0.2993069105 | Y45: 2864
A46: 43 | B46: 1978 | C46: 1211 | V46: 43 | W46: 0.6323529412 | X46: -0.3380916568 | Y46: 2845
A47: 44 | B47: 1979 | C47: 2712 | V47: 44 | W47: 0.6470588235 | X47: -0.3773919438 | Y47: 2828
A48: 45 | B48: 1980 | C48: 2828 | V48: 45 | W48: 0.6617647059 | X48: -0.4172841394 | Y48: 2755
A49: 46 | B49: 1981 | C49: 3914 | V49: 46 | W49: 0.6764705882 | X49: -0.457851931 | Y49: 2712
A50: 47 | B50: 1982 | C50: 10694 | V50: 47 | W50: 0.6911764706 | X50: -0.4991878421 | Y50: 2700
A51: 48 | B51: 1983 | C51: 2864 | V51: 48 | W51: 0.7058823529 | X51: -0.5413950851 | Y51: 2629
A52: 49 | B52: 1984 | C52: 2021 | V52: 49 | W52: 0.7205882353 | X52: -0.5845898571 | Y52: 2626
A53: 50 | B53: 1985 | C53: 9478 | V53: 50 | W53: 0.7352941176 | X53: -0.6289042176 | Y53: 2488
A54: 51 | B54: 1986 | C54: 1556 | V54: 51 | W54: 0.75 | X54: -0.6744897502 | Y54: 2441
A55: 52 | B55: 1987 | C55: 3354 | V55: 52 | W55: 0.7647058824 | X55: -0.721522284 | Y55: 2220
A56: 53 | B56: 1988 | C56: 2488 | V56: 53 | W56: 0.7794117647 | X56: -0.7702080819 | Y56: 2064
A57: 54 | B57: 1989 | C57: 4700 | V57: 54 | W57: 0.7941176471 | X57: -0.8207920883 | Y57: 2041
A58: 55 | B58: 1990 | C58: 7905 | V58: 55 | W58: 0.8088235294 | X58: -0.8735691346 | Y58: 2021
A59: 56 | B59: 1991 | C59: 4145 | V59: 56 | W59: 0.8235294118 | X59: -0.9288994916 | Y59: 1908
A60: 57 | B60: 1992 | C60: 5665 | V60: 57 | W60: 0.8382352941 | X60: -0.987230992 | Y60: 1898
A61: 58 | B61: 1993 | C61: 3165 | V61: 58 | W61: 0.8529411765 | X61: -1.049131398 | Y61: 1851
A62: 59 | B62: 1994 | C62: 4043 | V62: 59 | W62: 0.8676470588 | X62: -1.115337358 | Y62: 1659
A63: 60 | B63: 1995 | C63: 7391 | V63: 60 | W63: 0.8823529412 | X63: -1.186831433 | Y63: 1556
A64: 61 | B64: 1996 | C64: 1908 | V64: 61 | W64: 0.8970588235 | X64: -1.264969245 | Y64: 1549
A65: 62 | B65: 1997 | C65: 4182 | V65: 62 | W65: 0.9117647059 | X65: -1.35170224 | Y65: 1545
A66: 63 | B66: 1998 | C66: 2845 | V66: 63 | W66: 0.9264705882 | X66: -1.449998909 | Y66: 1260
A67: 64 | B67: 1999 | C67: 2220 | V67: 64 | W67: 0.9411764706 | X67: -1.564726471 | Y67: 1211
A68: 65 | B68: 2000 | C68: 5689 | V68: 65 | W68: 0.9558823529 | X68: -1.704780905 | Y68: 992
A69: 66 | B69: 2001 | C69: 4214 | V69: 66 | W69: =V69/($V$70+1) -> 0.9705882353 | X69: =NORMSINV(1-W69) -> -1.88950996 | Y69: =LARGE($C$4:$C$70,V69) -> 975 | Z69: =1-_xlfn.NORM.DIST(Y69,$G$9,$G$10,TRUE) ->  | AA69: =_xlfn.NORM.INV(1-W69,$G$9,$G$10) -> 
A70: 67 | B70: 2002 | C70: 2755 | V70: 67 | W70: 0.9852941176 | X70: -2.177923069 | Y70: 746

Sheet LogNormal
A1: Fitting a probability distribution to data | W1: Weibull | Z1: =CORREL(Z4:Z70,W4:W70) -> 
C2: annual | W2: plotting | X2: deviate of | Y2: ranked | Z2: logNormal Distrib.
B3: year | C3: peak flow | D3: log flow | W3: position | X3: plot pos | Y3: flows | Z3: p | AA3: quantile | AK3: exc prob | AL3: dev | AM3: CDF
A4: 1 | B4: 1936 | C4: 4294 | V4: 1 | W4: =V4/($V$70+1) -> 0.01470588235 | X4: =NORMSINV(1-W4) -> 2.177923069 | Y4: =LARGE($C$4:$C$70,V4) -> 14367 | Z4: =1-_xlfn.NORM.DIST(LOG(Y4),$G$9,$G$10,TRUE) ->  | AA4: =10^_xlfn.NORM.INV(1-W4,$G$9,$G$10) ->  | AK4: 0.98 | AL4: =NORMSINV(1-AD31) -> -2.053748911 | AM4: =10^NORMINV(1-AK4,$G$9,$G$10) -> 
A5: 2 | B5: 1937 | C5: 992 | V5: 2 | W5: =V5/($V$70+1) -> 0.02941176471 | X5: =NORMSINV(1-W5) -> 1.88950996 | Y5: =LARGE($C$4:$C$70,V5) -> 12007 | Z5: =1-_xlfn.NORM.DIST(LOG(Y5),$G$9,$G$10,TRUE) ->  | AA5: =10^_xlfn.NORM.INV(1-W5,$G$9,$G$10) ->  | AK5: 0.95 | AL5: -1.644853627 | AM5: =10^NORMINV(1-AK5,$G$9,$G$10) -> 
A6: 3 | B6: 1938 | C6: 2629 | F6: fit a logNormal distribution | V6: 3 | W6: 0.04411764706 | X6: 1.704780905 | Y6: 10694 | AK6: 0.9 | AL6: -1.281551566 | AM6: =10^NORMINV(1-AK6,$G$9,$G$10) -> 
A7: 4 | B7: 1939 | C7: 8157 | V7: 4 | W7: 0.05882352941 | X7: 1.564726471 | Y7: 10192 | AK7: 0.85 | AL7: -1.036433389
A8: 5 | B8: 1940 | C8: 3316 | F8: parameters are: | V8: 5 | W8: 0.07352941176 | X8: 1.449998909 | Y8: 9622 | AK8: 0.8 | AL8: -0.8416212336
A9: 6 | B9: 1941 | C9: 10192 | F9: mean of logs = | V9: 6 | W9: 0.08823529412 | X9: 1.35170224 | Y9: 9478 | AK9: 0.75 | AL9: -0.6744897502
A10: 7 | B10: 1942 | C10: 3270 | F10: stdev of logs = | V10: 7 | W10: 0.1029411765 | X10: 1.264969245 | Y10: 8273 | AK10: 0.7 | AL10: -0.5244005127
A11: 8 | B11: 1943 | C11: 12007 | V11: 8 | W11: 0.1176470588 | X11: 1.186831433 | Y11: 8157 | AK11: 0.65 | AL11: -0.3853204664
A12: 9 | B12: 1944 | C12: 2441 | V12: 9 | W12: 0.1323529412 | X12: 1.115337358 | Y12: 7905 | AK12: 0.6 | AL12: -0.2533471031
A13: 10 | B13: 1945 | C13: 5057 | V13: 10 | W13: 0.1470588235 | X13: 1.049131398 | Y13: 7391 | AK13: 0.55 | AL13: -0.1256613469 | AP13: Interpolation
A14: 11 | B14: 1946 | C14: 4461 | V14: 11 | W14: 0.1617647059 | X14: 0.987230992 | Y14: 7093 | AK14: 0.5 | AL14: -2.504624782e-15 | AQ14: D | AT14: A | AU14: B | AV14: C | AW14: E
A15: 12 | B15: 1947 | C15: 5556 | E15: histogram | I15: Normal Distribution PDF and CDF | V15: 12 | W15: 0.1764705882 | X15: 0.9288994916 | Y15: 6849 | AK15: 0.45 | AL15: 0.1256613469 | AP15: Normal Distribution PDF and CDF | AT15: first | AV15: second
A16: 13 | B16: 1948 | C16: 3278 | E16: 0 | F16: frequency() | G16: rel freq. | H16: cum. freq | I16: index | J16: PDF | K16: CDF | V16: 13 | W16: 0.1911764706 | X16: 0.8735691346 | Y16: 6610 | AK16: 0.4 | AL16: 0.2533471031 | AP16: index | AR16: lower | AS16: upper | AT16: lower | AU16: upper | AV16: lower | AW16: upper | AX16: interp
A17: 14 | B17: 1949 | C17: 5281 | E17: 1000 | F17: =FREQUENCY(C4:C70,E17:E32) -> 3 | G17: =F17/SUM($F$17:$F$32) -> 0.0447761194 | H17: =G17 -> 0.0447761194 | I17: =AVERAGE(E16:E17) -> 500 | J17: =AX17 ->  | K17: =NORMDIST(LOG(I17),$G$9,$G$10,TRUE) ->  | V17: 14 | W17: 0.2058823529 | X17: 0.8207920883 | Y17: 5689 | AK17: 0.35 | AL17: 0.3853204664 | AP17: =AVERAGE(E16:E17) -> 500 | AQ17: =LOG(AP17) -> 2.698970004 | AR17: =MATCH(AQ17,$I$36:$I$53,1) -> 1 | AS17: =IF(AR17<16,AR17+1,AR17) -> 2 | AT17: =IF(AR17<>AS17,INDEX($J$36:$J$53,AR17),INDEX($J$36:$J$53,AR17-1)) ->  | AU17: =INDEX($J$36:$J$53,AS17) ->  | AV17: =IF(AR17<>AS17,INDEX($I$36:$I$53,AR17),INDEX($I$36:$I$53,AR17-1)) -> 2.65 | AW17: =INDEX($I$36:$I$53,AS17) -> 2.75 | AX17: =AT17+(AU17-AT17)*(AQ17-AV17)/(AW17-AV17) -> 
A18: 15 | B18: 1950 | C18: 3177 | E18: 2000 | F18: 9 | G18: =F18/SUM($F$17:$F$32) -> 0.1343283582 | H18: =H17+G18 -> 0.1791044776 | I18: =AVERAGE(E17:E18) -> 1500 | J18: =AX18 ->  | V18: 15 | W18: 0.2205882353 | X18: 0.7702080819 | Y18: 5665 | AK18: 0.3 | AL18: 0.5244005127 | AP18: =AVERAGE(E17:E18) -> 1500 | AQ18: =LOG(AP18) -> 3.176091259 | AR18: 6 | AS18: 7 | AV18: 3.15 | AW18: 3.25 | AX18: =AT18+(AU18-AT18)*(AQ18-AV18)/(AW18-AV18) -> 
A19: 16 | B19: 1951 | C19: 3419 | E19: 3000 | F19: 15 | G19: 0.223880597 | H19: =H18+G19 -> 0.4029850746 | I19: =AVERAGE(E18:E19) -> 2500 | V19: 16 | W19: 0.2352941176 | X19: 0.721522284 | Y19: 5646 | AK19: 0.25 | AL19: 0.6744897502 | AP19: 2500 | AQ19: 3.397940009 | AR19: 8 | AS19: 9 | AV19: 3.35 | AW19: 3.45
A20: 17 | B20: 1952 | C20: 746 | E20: 4000 | F20: 9 | G20: 0.1343283582 | H20: 0.5373134328 | I20: 3500 | V20: 17 | W20: 0.25 | X20: 0.6744897502 | Y20: 5632 | AK20: 0.2 | AL20: 0.8416212336 | AP20: 3500 | AQ20: 3.544068044 | AR20: 9 | AS20: 10 | AV20: 3.45 | AW20: 3.55
A21: 18 | B21: 1953 | C21: 5632 | E21: 5000 | F21: 10 | G21: 0.1492537313 | H21: 0.6865671642 | I21: 4500 | V21: 18 | W21: 0.2647058824 | X21: 0.6289042176 | Y21: 5556 | AK21: 0.15 | AL21: 1.036433389 | AP21: 4500 | AQ21: 3.653212514 | AR21: 11 | AS21: 12 | AV21: 3.65 | AW21: 3.75
A22: 19 | B22: 1954 | C22: 1659 | E22: 6000 | F22: 8 | G22: 0.1194029851 | H22: 0.8059701493 | I22: 5500 | V22: 19 | W22: 0.2794117647 | X22: 0.5845898571 | Y22: 5299 | AK22: 0.1 | AL22: 1.281551566 | AP22: 5500 | AQ22: 3.740362689 | AR22: 11 | AS22: 12 | AV22: 3.65 | AW22: 3.75
A23: 20 | B23: 1955 | C23: 4539 | E23: 7000 | F23: 2 | G23: 0.02985074627 | H23: 0.8358208955 | I23: 6500 | V23: 20 | W23: 0.2941176471 | X23: 0.5413950851 | Y23: 5281 | AK23: 0.05 | AL23: 1.644853627 | AP23: 6500 | AQ23: 3.812913357 | AR23: 12 | AS23: 13 | AV23: 3.75 | AW23: 3.85
A24: 21 | B24: 1956 | C24: 2986 | E24: 8000 | F24: 3 | G24: 0.0447761194 | H24: 0.8805970149 | I24: 7500 | V24: 21 | W24: 0.3088235294 | X24: 0.4991878421 | Y24: 5057 | AK24: 0.02 | AL24: 2.053748911 | AP24: 7500 | AQ24: 3.875061263 | AR24: 13 | AS24: 14 | AV24: 3.85 | AW24: 3.95
A25: 22 | B25: 1957 | C25: 6849 | E25: 9000 | F25: 2 | G25: 0.02985074627 | H25: 0.9104477612 | I25: 8500 | V25: 22 | W25: 0.3235294118 | X25: 0.457851931 | Y25: 4700 | AK25: 0.01 | AL25: 2.326347874 | AP25: 8500 | AQ25: 3.929418926 | AR25: 13 | AS25: 14 | AV25: 3.85 | AW25: 3.95
A26: 23 | B26: 1958 | C26: 1549 | E26: 10000 | F26: 2 | G26: 0.02985074627 | H26: 0.9402985075 | I26: 9500 | V26: 23 | W26: 0.3382352941 | X26: 0.4172841394 | Y26: 4539 | AP26: 9500 | AQ26: 3.977723605 | AR26: 14 | AS26: 15 | AV26: 3.95 | AW26: 4.05
A27: 24 | B27: 1959 | C27: 4051 | E27: 11000 | F27: 2 | G27: 0.02985074627 | H27: 0.9701492537 | I27: 10500 | V27: 24 | W27: 0.3529411765 | X27: 0.3773919438 | Y27: 4461 | AP27: 10500 | AQ27: 4.021189299 | AR27: 14 | AS27: 15 | AV27: 3.95 | AW27: 4.05
A28: 25 | B28: 1960 | C28: 975 | E28: 12000 | F28: 0 | G28: 0 | H28: 0.9701492537 | I28: 11500 | V28: 25 | W28: 0.3676470588 | X28: 0.3380916568 | Y28: 4355 | AP28: 11500 | AQ28: 4.06069784 | AR28: 15 | AS28: 16 | AV28: 4.05 | AW28: 4.15
A29: 26 | B29: 1961 | C29: 1260 | E29: 13000 | F29: 1 | G29: 0.01492537313 | H29: 0.9850746269 | I29: 12500 | V29: 26 | W29: 0.3823529412 | X29: 0.2993069105 | Y29: 4294 | AP29: 12500 | AQ29: 4.096910013 | AR29: 15 | AS29: 16 | AV29: 4.05 | AW29: 4.15
A30: 27 | B30: 1962 | C30: 4355 | E30: 14000 | F30: 0 | G30: 0 | H30: 0.9850746269 | I30: 13500 | V30: 27 | W30: 0.3970588235 | X30: 0.2609674004 | Y30: 4214 | AP30: 13500 | AQ30: 4.130333768 | AR30: 15 | AS30: 16 | AV30: 4.05 | AW30: 4.15
A31: 28 | B31: 1963 | C31: 9622 | E31: 15000 | F31: 1 | G31: 0.01492537313 | H31: 1 | I31: 14500 | V31: 28 | W31: 0.4117647059 | X31: 0.2230078309 | Y31: 4182 | AD31: 0.98 | AP31: 14500 | AQ31: 4.161368002 | AR31: 16 | AS31: =IF(AR31<16,AR31+1,AR31) -> 16 | AV31: 4.05 | AW31: 4.15
A32: 29 | B32: 1964 | C32: 5299 | E32: 16000 | F32: 0 | G32: 0 | H32: 1 | I32: 15500 | V32: 29 | W32: 0.4264705882 | X32: 0.1853670173 | Y32: 4145 | AD32: 0.95 | AP32: 15500 | AQ32: 4.190331698 | AR32: 16 | AS32: =IF(AR32<16,AR32+1,AR32) -> 16 | AV32: 4.05 | AW32: 4.15
A33: 30 | B33: 1965 | C33: 7093 | V33: 30 | W33: 0.4411764706 | X33: 0.1479871097 | Y33: 4051 | AD33: 0.9
A34: 31 | B34: 1966 | C34: 14367 | F34: working in log space… | V34: 31 | W34: 0.4558823529 | X34: 0.1108129123 | Y34: 4043 | AD34: 0.85
A35: 32 | B35: 1967 | C35: 2626 | E35: 2.6 | G35: rel freq | H35: cum. freq | I35: index | J35: pdf | K35: cdf | V35: 32 | W35: 0.4705882353 | X35: 0.07379127381 | Y35: 3914 | AD35: 0.8
A36: 33 | B36: 1968 | C36: 1898 | E36: 2.7 | F36: =FREQUENCY(D4:D70,E36:E53) -> 0 | G36: =F36/SUM($F$36:$F$53) ->  | H36: =G36 ->  | I36: =AVERAGE(E35:E36) -> 2.65 | J36: =NORMDIST(I36,$G$9,$G$10,FALSE)*0.1 ->  | K36: =NORMDIST(I36,$G$9,$G$10,TRUE) ->  | L36: =10^I36 -> 446.6835922 | V36: 33 | W36: 0.4852941176 | X36: 0.03687053266 | Y36: 3552 | AD36: 0.75
A37: 34 | B37: 1969 | C37: 8273 | E37: 2.8 | F37: 0 | H37: =H36+G37 ->  | I37: =AVERAGE(E36:E37) -> 2.75 | J37: =NORMDIST(I37,$G$9,$G$10,FALSE)*0.1 ->  | K37: =NORMDIST(I37,$G$9,$G$10,TRUE) ->  | L37: =10^I37 -> 562.3413252 | V37: 34 | W37: 0.5 | X37: 0 | Y37: 3419 | AD37: 0.7
A38: 35 | B38: 1970 | C38: 5646 | E38: 2.9 | F38: 0 | H38: =H37+G38 ->  | I38: 2.85 | L38: 707.9457844 | V38: 35 | W38: 0.5147058824 | X38: -0.03687053266 | Y38: 3354 | AD38: 0.65 | AN38: 0 | AO38: 16000
A39: 36 | B39: 1971 | C39: 3552 | E39: 3 | F39: 0 | I39: 2.95 | L39: 891.2509381 | V39: 36 | W39: 0.5294117647 | X39: -0.07379127381 | Y39: 3316 | AD39: 0.6 | AM39: 0.95 | AN39: =NORMSINV(1-AM39) -> -1.644853627 | AO39: =AN39 -> -1.644853627 | AP39: 0
A40: 37 | B40: 1972 | C40: 2041 | E40: 3.1 | F40: 0 | I40: 3.05 | L40: 1122.018454 | V40: 37 | W40: 0.5441176471 | X40: -0.1108129123 | Y40: 3278 | AD40: 0.55 | AM40: 0.9 | AN40: =NORMSINV(1-AM40) -> -1.281551566 | AO40: =AN40 -> -1.281551566 | AP40: 0
A41: 38 | B41: 1973 | C41: 2700 | E41: 3.2 | F41: 0 | I41: 3.15 | L41: 1412.537545 | V41: 38 | W41: 0.5588235294 | X41: -0.1479871097 | Y41: 3270 | AD41: 0.5 | AM41: 0.75 | AN41: -0.6744897502 | AO41: -0.6744897502 | AP41: 0
A42: 39 | B42: 1974 | C42: 1545 | E42: 3.3 | F42: 0 | I42: 3.25 | L42: 1778.27941 | V42: 39 | W42: 0.5735294118 | X42: -0.1853670173 | Y42: 3177 | AD42: 0.45 | AM42: 0.5 | AN42: 0 | AO42: 0 | AP42: 0
A43: 40 | B43: 1975 | C43: 2064 | E43: 3.4 | F43: 0 | I43: 3.35 | L43: 2238.721139 | V43: 40 | W43: 0.5882352941 | X43: -0.2230078309 | Y43: 3165 | AD43: 0.4 | AM43: 0.25 | AN43: 0.6744897502 | AO43: 0.6744897502 | AP43: 0
A44: 41 | B44: 1976 | C44: 1851 | E44: 3.5 | F44: 0 | I44: 3.45 | L44: 2818.382931 | V44: 41 | W44: 0.6029411765 | X44: -0.2609674004 | Y44: 2986 | AD44: 0.35 | AM44: 0.1 | AN44: 1.281551566 | AO44: 1.281551566 | AP44: 0
A45: 42 | B45: 1977 | C45: 6610 | E45: 3.6 | F45: 0 | I45: 3.55 | L45: 3548.133892 | V45: 42 | W45: 0.6176470588 | X45: -0.2993069105 | Y45: 2864 | AD45: 0.3 | AM45: 0.05 | AN45: 1.644853627 | AO45: 1.644853627 | AP45: 0
A46: 43 | B46: 1978 | C46: 1211 | E46: 3.7 | F46: 0 | I46: 3.65 | L46: 4466.835922 | V46: 43 | W46: 0.6323529412 | X46: -0.3380916568 | Y46: 2845 | AD46: 0.25 | AM46: 0.02 | AN46: 2.053748911 | AO46: 2.053748911 | AP46: 0
A47: 44 | B47: 1979 | C47: 2712 | E47: 3.8 | F47: 0 | I47: 3.75 | L47: 5623.413252 | V47: 44 | W47: 0.6470588235 | X47: -0.3773919438 | Y47: 2828 | AD47: 0.2 | AM47: 0.01 | AN47: 2.326347874 | AO47: 2.326347874 | AP47: 0
A48: 45 | B48: 1980 | C48: 2828 | E48: 3.9 | F48: 0 | I48: 3.85 | L48: 7079.457844 | V48: 45 | W48: 0.6617647059 | X48: -0.4172841394 | Y48: 2755 | AD48: 0.15
A49: 46 | B49: 1981 | C49: 3914 | E49: 4 | F49: 0 | G49: =F49/SUM($F$36:$F$53) ->  | H49: =H48+G49 ->  | I49: =AVERAGE(E48:E49) -> 3.95 | J49: =NORMDIST(I49,$G$9,$G$10,FALSE)*0.1 ->  | K49: =NORMDIST(I49,$G$9,$G$10,TRUE) ->  | L49: =10^I49 -> 8912.509381 | V49: 46 | W49: 0.6764705882 | X49: -0.457851931 | Y49: 2712 | AD49: 0.1
A50: 47 | B50: 1982 | C50: 10694 | E50: 4.1 | F50: 0 | I50: 4.05 | L50: 11220.18454 | V50: 47 | W50: 0.6911764706 | X50: -0.4991878421 | Y50: 2700 | AD50: 0.05
A51: 48 | B51: 1983 | C51: 2864 | E51: 4.2 | F51: 0 | I51: 4.15 | L51: 14125.37545 | V51: 48 | W51: 0.7058823529 | X51: -0.5413950851 | Y51: 2629 | AD51: 0.02
A52: 49 | B52: 1984 | C52: 2021 | E52: 4.3 | F52: 0 | I52: 4.25 | L52: 17782.7941 | V52: 49 | W52: 0.7205882353 | X52: -0.5845898571 | Y52: 2626 | AD52: 0.01
A53: 50 | B53: 1985 | C53: 9478 | E53: 4.4 | F53: 0 | I53: 4.35 | L53: 22387.21139 | V53: 50 | W53: 0.7352941176 | X53: -0.6289042176 | Y53: 2488
A54: 51 | B54: 1986 | C54: 1556 | V54: 51 | W54: 0.75 | X54: -0.6744897502 | Y54: 2441
A55: 52 | B55: 1987 | C55: 3354 | F55: =SUM(F36:F53) -> 0 | G55: =SUM(G36:G53) ->  | V55: 52 | W55: 0.7647058824 | X55: -0.721522284 | Y55: 2220
A56: 53 | B56: 1988 | C56: 2488 | V56: 53 | W56: 0.7794117647 | X56: -0.7702080819 | Y56: 2064
A57: 54 | B57: 1989 | C57: 4700 | V57: 54 | W57: 0.7941176471 | X57: -0.8207920883 | Y57: 2041
A58: 55 | B58: 1990 | C58: 7905 | V58: 55 | W58: 0.8088235294 | X58: -0.8735691346 | Y58: 2021
A59: 56 | B59: 1991 | C59: 4145 | V59: 56 | W59: 0.8235294118 | X59: -0.9288994916 | Y59: 1908
A60: 57 | B60: 1992 | C60: 5665 | V60: 57 | W60: 0.8382352941 | X60: -0.987230992 | Y60: 1898
A61: 58 | B61: 1993 | C61: 3165 | V61: 58 | W61: 0.8529411765 | X61: -1.049131398 | Y61: 1851
A62: 59 | B62: 1994 | C62: 4043 | V62: 59 | W62: 0.8676470588 | X62: -1.115337358 | Y62: 1659
A63: 60 | B63: 1995 | C63: 7391 | V63: 60 | W63: 0.8823529412 | X63: -1.186831433 | Y63: 1556
A64: 61 | B64: 1996 | C64: 1908 | V64: 61 | W64: 0.8970588235 | X64: -1.264969245 | Y64: 1549
A65: 62 | B65: 1997 | C65: 4182 | V65: 62 | W65: 0.9117647059 | X65: -1.35170224 | Y65: 1545
A66: 63 | B66: 1998 | C66: 2845 | V66: 63 | W66: 0.9264705882 | X66: -1.449998909 | Y66: 1260
A67: 64 | B67: 1999 | C67: 2220 | V67: 64 | W67: 0.9411764706 | X67: -1.564726471 | Y67: 1211
A68: 65 | B68: 2000 | C68: 5689 | V68: 65 | W68: 0.9558823529 | X68: -1.704780905 | Y68: 992
A69: 66 | B69: 2001 | C69: 4214 | V69: 66 | W69: =V69/($V$70+1) -> 0.9705882353 | X69: =NORMSINV(1-W69) -> -1.88950996 | Y69: =LARGE($C$4:$C$70,V69) -> 975 | Z69: =1-_xlfn.NORM.DIST(LOG(Y69),$G$9,$G$10,TRUE) ->  | AA69: =10^_xlfn.NORM.INV(1-W69,$G$9,$G$10) -> 
A70: 67 | B70: 2002 | C70: 2755 | V70: 67 | W70: 0.9852941176 | X70: -2.177923069 | Y70: 746
